Cogmind - Beta 13 @@@ ROGUE MODE // 2024.03.17 @ 10:10:32 Player: Dosh Result: Assimilated 0b10! Performance ------------- Evolutions (9) 4500 Regions Visited (37) 7400 Robots Destroyed (523) 2615 Value Destroyed (20203) 20203 Prototype IDs (309) 6180 Alien Tech Used (0) 0 Bonus (38709) 38709 TOTAL SCORE: 79607 Bonus ------- High Alert Combat Kills 3794 Follower Combat Kills 2323 Entered Garrisons 400 Entered DSFs 500 Network Hubs Disabled 600 Aligned with FarCom 300 Met Warlord at Base 500 MAIN.C Attacked Warlord 500 Built Enhanced Grunts 300 A7 Reached Mainframe 300 Met Warlord at Research 2000 Destroyed MAIN.C Guards 500 Met MAIN.C 5000 Destroyed MAIN.C Shell 5000 Destroyed MAIN.C 10000 Used 0b10 Conduit 2000 Met Warlord at Command 2000 Win 3000 Friendly Fire -308 Cogmind --------- Core Integrity 897/1600 Matter 295/300 Energy 234/240 System Corruption 19% Temperature Cool (12) Movement Hovering (44) Location 0b10 Command Parts ------- > --- POWER (2) -------- Zero-point Reactor > --- PROPULSION (8) --- Improved Antigrav System Cooled Linear Gravjet Combat Linear Gravjet Combat Linear Gravjet > --- UTILITY (11) ----- Medium Storage Unit Experimental Melee Analysis Suite Experimental Melee Analysis Suite Experimental Core Analyzer Microactuators Nanoactuators Advanced Actuator Array > --- WEAPON (4) ------- Nanosword Nanosword Vortex Lance Vortex Lance > --- INVENTORY (10) --- Experimental EM Disruption Field Improved Hacking Suite Guided Micro-nuke Launcher Nanosword Peak State ------------ > --- POWER ------------ Vortex Chain Reactor > --- PROPULSION ------- Cooled Antigrav System Combat Linear Gravjet Combat Linear Gravjet Combat Linear Gravjet Combat Linear Gravjet Combat Linear Gravjet Combat Linear Gravjet Combat Linear Gravjet > --- UTILITY ---------- Advanced Cooling System Large Storage Unit Experimental Melee Analysis Suite Experimental Melee Analysis Suite Experimental Core Analyzer Nanoactuators Advanced Actuator Array Experimental Reaction Control System Layered Heavy Armor Plating Advanced Force Field > --- WEAPON ----------- Nanosword Nanosword Nanosword Vortex Lance > --- INVENTORY -------- Light Quantum Reactor Light Quantum Reactor Light Quantum Reactor Antigrav System Improved Antigrav System Structural Scanner Advanced Force Booster Experimental EM Disruption Field Improved Hacking Suite Guided Micro-nuke Launcher Vortex Lance [Rating: 214] Favorites ----------- Power Light Antimatter Reactor Engine Ion Engine Power Core Micro Fission Core Reactor Light Antimatter Reactor Propulsion Combat Linear Gravjet Treads Light Treads Leg Enhanced Biometal Leg Hover Unit Combat Linear Gravjet Flight Unit Cooled VTOL Module Utility Advanced Hacking Suite Device Structural Scanner Storage Large Storage Unit Processor Experimental Melee Analysis Suite Hackware Advanced Hacking Suite Protection Improved Medium Armor Plating Weapon Longsword +1 Energy Gun EM Pulse Gun Energy Cannon Heavy Phase Cannon Ballistic Gun Autogun Ballistic Cannon Hypervelocity Gauss Cannon Launcher Grenade Launcher Special Weapon Improved Plasma Cutter Slashing Weapon Longsword +1 Piercing Weapon Vortex Lance Special Melee Weapon Datajack Build | -11 -10 -10 -10 -9 -8 -8 -8 -7 -7 -7 -7 -7 -7 -6 -6 -6 -6 -6 -5 -5 -5 -5 -5 -5 -5 -4 -4 -4 -4 -4 -4 -3 -3 -3 -2 -1 -1 ------- Run | Yrd Mat Min Exi Min Mat Gar Mat Fac Was Fac Low Low Zio Pro Fac Was Fac Gar Fac Was Fac Ext Cet Arc Hub Fac Was Fac Upp Upp War Pro Res DSF Res Acc Com Slots Evolved 18 | . . . . . 4 . . 2 . . . . . . 2 . . . 2 . . . . . . 2 . . . . . . 2 . 2 2 . Power 1 | . . . . . . . . . . . . . . . . . . . 1 . . . . . . . . . . . . . . . . . . Propulsion 6 | . . . . . 1 . . 1 . . . . . . 1 . . . 1 . . . . . . . . . . . . . . . 1 1 . Utility 9 | . . . . . 3 . . 1 . . . . . . 1 . . . . . . . . . . 2 . . . . . . 1 . 1 . . Weapon 2 | . . . . . . . . . . . . . . . . . . . . . . . . . . . . . . . . . 1 . . 1 . Parts Attached 589 | 5 13 10 . 8 39 9 10 31 . 26 1 4 2 1 9 8 23 10 41 . 30 31 8 7 23 58 . 81 5 1 9 8 7 9 16 20 26 Power 55 | 1 . 2 . 1 4 2 . 2 . 5 . . . . . . 1 . 3 . 2 1 2 . 3 9 . 10 . . 2 . . . . . 5 Engine 5 | 1 . 2 . . 2 . . . . . . . . . . . . . . . . . . . . . . . . . . . . . . . . Core 17 | . . . . 1 2 2 . 2 . 5 . . . . . . . . 1 . . 1 . . . 2 . 1 . . . . . . . . . Reactor 33 | . . . . . . . . . . . . . . . . . 1 . 2 . 2 . 2 . 3 7 . 9 . . 2 . . . . . 5 Propulsion 147 | 2 1 3 . 3 11 . 6 6 . 6 1 . . 1 4 . 4 . 9 . 5 18 3 2 8 19 . 20 . . 4 . . . 6 1 4 Treads 21 | 2 1 . . . 8 . 6 . . . . . . . . . . . . . . . 3 1 . . . . . . . . . . . . . Leg 48 | . . 3 . 3 3 . . . . . . . . . . . . . . . . 17 . 1 8 13 . . . . . . . . . . . Wheel . | . . . . . . . . . . . . . . . . . . . . . . . . . . . . . . . . . . . . . . Hover 41 | . . . . . . . . . . . . . . . . . . . . . . . . . . 6 . 20 . . 4 . . . 6 1 4 Flight 37 | . . . . . . . . 6 . 6 1 . . 1 4 . 4 . 9 . 5 1 . . . . . . . . . . . . . . . Utility 252 | 1 3 2 . 1 9 3 3 14 . 10 . 4 1 . 3 8 10 . 17 . 11 11 3 4 6 23 . 49 5 1 3 1 6 3 10 13 14 Device 143 | . . . . . 1 2 1 6 . 5 . 4 . . . 7 9 . 10 . 8 4 . 4 2 8 . 34 4 . 2 1 5 1 8 7 10 Storage 9 | 1 1 . . . . . . 2 . . . . . . 1 . . . 1 . . 1 . . . . . . . . 1 . . . . . 1 Processor 17 | . . . . . 3 . . 1 . 3 . . . . . . 1 . 2 . . 1 . . . 2 . . . . . . . . . 3 1 Hackware 24 | . . . . . 1 . 1 3 . 2 . . 1 . 2 . . . 4 . . . . . . 4 . 2 . . . . . 1 1 2 . Protection 59 | . 2 2 . 1 4 1 1 2 . . . . . . . 1 . . . . 3 5 3 . 4 9 . 13 1 1 . . 1 1 1 1 2 Artifact . | . . . . . . . . . . . . . . . . . . . . . . . . . . . . . . . . . . . . . . Weapon 135 | 1 9 3 . 3 15 4 1 9 . 5 . . 1 . 2 . 8 10 12 . 12 1 . 1 6 7 . 2 . . . 7 1 6 . 6 3 Energy Gun 4 | 1 1 . . . 1 . . . . . . . . . . . . . 1 . . . . . . . . . . . . . . . . . . Energy Cannon 10 | . . . . . . . . 2 . 2 . . . . 1 . 2 . 1 . 2 . . . . . . . . . . . . . . . . Ballistic Gun 25 | . 8 2 . 1 9 2 1 . . 2 . . . . . . . . . . . . . . . . . . . . . . . . . . . Ballistic Cannon 4 | . . . . . 2 1 . . . 1 . . . . . . . . . . . . . . . . . . . . . . . . . . . Launcher 30 | . . 1 . 2 1 . . 1 . . . . . . . . 2 5 5 . 5 . . . 2 1 . . . . . 2 . 2 . 1 . Special Weapon 1 | . . . . . . . . . . . . . . . . . . . . . . . . . 1 . . . . . . . . . . . . Impact Weapon . | . . . . . . . . . . . . . . . . . . . . . . . . . . . . . . . . . . . . . . Slashing Weapon 54 | . . . . . 2 1 . 5 . . . . 1 . 1 . 4 5 3 . 5 1 . 1 3 6 . 2 . . . 5 1 4 . 4 . Piercing Weapon 4 | . . . . . . . . . . . . . . . . . . . . . . . . . . . . . . . . . . . . 1 3 Special Melee Weapon 3 | . . . . . . . . 1 . . . . . . . . . . 2 . . . . . . . . . . . . . . . . . . Unidentified Prototypes 48 | . 1 . . . . . 1 1 . 10 . . . . 1 2 1 . 8 . 2 . 2 1 3 . . 1 . . 5 . . . 5 2 2 Corrupted Parts 1 | . . . . . . . . . . . . . . . . . . . . . . . 1 . . . . . . . . . . . . . . System Corruption 13 | . . . . . . . . . . . . . . . . . . . . . . . 13 . . . . . . . . . . . . . . Parts Lost 77 | . . 7 . 1 13 3 1 3 . 1 . . . 1 . . 1 1 1 . 3 4 . . 4 10 . 7 . 1 . . . 2 . 1 12 Power 17 | . . 2 . . 3 1 . 1 . . . . . . . . . . . . 1 . . . . 4 . 2 . . . . . . . . 3 Propulsion 17 | . . 2 . . 4 . . 1 . . . . . 1 . . . . . . 1 2 . . . . . 2 . . . . . . . . 4 Utility 35 | . . 2 . 1 4 2 . 1 . 1 . . . . . . 1 1 . . 1 2 . . 3 5 . 3 . 1 . . . 2 . . 5 Weapon 8 | . . 1 . . 2 . 1 . . . . . . . . . . . 1 . . . . . 1 1 . . . . . . . . . 1 . Highest Loss Streak 7 | . . 4 . 1 6 1 1 1 . 1 . . . 1 . . 1 1 1 . 1 1 . . 2 4 . 1 . 1 . . . 2 . 1 7 To Critical Strikes . | . . . . . . . . . . . . . . . . . . . . . . . . . . . . . . . . . . . . . . Average Slot Usage (%) 93 | . 97 95 100 99 89 89 99 85 92 91 92 92 92 92 87 93 92 80 89 100 93 99 84 81 80 97 100 99 100 99 96 93 95 90 90 88 89 Engine 1 | . 14 12 14 . 1 7 . . . . . . . . . . . . . . 1 . . . . . . . . . . . . . . . . Core 3 | . . . . 13 6 . 9 7 7 6 7 7 7 7 6 6 . . . 5 2 4 1 . . 4 5 2 . . . . . . . . . Reactor 3 | . . . . . . . . . . . . . . . . . 5 6 4 5 6 5 9 11 10 5 5 7 10 10 8 5 4 4 4 4 4 Treads 6 | . 28 7 . . 14 27 27 . . . . . . . . . . . . . . . 13 17 14 . . . . . . . . . . . . Leg 6 | . . 17 28 28 11 . . . . . . . . . . . . . . . . 22 5 . 4 30 . . . . . . . . . . . Hover 7 | . . . . . . . . . . . . . . . . . . . . . . . . . . . 31 30 31 31 31 31 28 28 30 32 31 Flight 8 | . . . . . . . . 23 23 26 30 30 30 30 27 33 32 33 33 35 35 11 . . . . . . . . . . . . . . . Device 7 | . . . . . 1 1 10 6 . 6 7 7 7 7 6 6 5 6 3 . 5 8 11 10 10 6 5 9 11 15 13 15 23 19 20 18 17 Storage 6 | . 14 14 14 14 9 9 9 7 7 7 7 7 7 7 6 6 6 6 5 5 5 5 5 5 5 5 5 5 5 5 5 5 4 4 4 4 4 Processor 5 | . . . . . 11 9 9 . 7 2 15 15 8 7 6 6 6 6 5 5 . 3 5 5 5 6 5 5 5 5 5 5 4 . . 4 10 Hackware 13 | . . . . . 8 9 9 25 30 27 15 15 21 23 26 26 25 13 22 29 24 13 5 5 3 16 21 16 15 11 10 10 9 12 13 8 3 Protection 6 | . 12 13 14 13 6 7 6 4 . . . . . . . . . . . . 3 6 11 11 11 9 10 9 8 8 10 10 4 7 4 3 3 Ballistic Gun 4 | . 20 27 28 21 13 10 9 . . . . . . . . . . . . . . . . . . . . . . . . . . . . . . Ballistic Cannon 1 | . . . . . 3 7 9 . . . . . . . . . . . . . . . . . . . . . . . . . . . . . . Slashing Weapon 6 | . . . . . . . . 6 7 7 7 7 7 7 6 6 5 4 4 5 4 10 11 11 9 9 10 9 10 10 10 8 14 9 13 12 11 Naked Turns . | . . . . . . . . . . . . . . . . . . . . . . . . . . . . . . . . . . . . . . Heaviest Build 112 | 12 34 34 34 34 39 58 60 25 20 21 18 19 19 19 19 19 26 27 37 37 49 72 77 77 78 72 53 71 60 61 71 89 81 82 93 97 112 Greatest Support 240 | 40 40 40 20 20 60 60 63 23 27 28 28 28 20 28 27 26 35 29 38 38 46 95 240 240 240 180 72 84 84 84 84 82 82 82 97 111 112 Greatest Overweight (x) 9 | . . 9 1 1 1 . . 1 . 1 . . . . 6 . 7 . 7 . 1 3 . . 2 . . 1 . . . 1 . . . . 1 Average Overweight (x) . | . . . 1 1 . . . . . . . . . . . . . . . . . . . . . . . . . . . . . . . . . Largest Inventory Capacity 15 | 8 15 15 15 15 15 15 15 15 10 10 10 10 10 10 10 10 10 10 10 10 10 15 15 15 15 15 15 15 15 15 15 15 15 15 15 15 15 Average Capacity 13 | 7 11 15 15 15 15 15 15 9 10 10 10 10 10 10 10 10 10 10 10 10 10 11 15 15 15 15 15 15 15 15 15 15 15 15 15 15 13 Most Carried 15 | 3 15 13 12 15 15 15 15 15 10 10 10 10 10 10 10 10 10 10 10 10 10 15 15 15 15 15 15 15 15 15 15 15 14 15 15 15 15 Average Carried 12 | 1 8 11 11 14 14 14 14 8 10 9 10 10 9 9 8 9 9 10 9 9 9 11 15 14 14 14 14 13 14 14 14 13 12 13 14 12 12 Final Capacity 15 | 8 15 15 15 15 15 15 15 10 10 10 10 10 10 10 10 10 10 10 10 10 10 15 15 15 15 15 15 15 15 15 15 15 15 15 15 15 10 Final Carried 15 | 3 13 11 12 15 15 15 15 10 10 10 10 10 10 9 9 9 10 10 9 9 10 15 15 14 15 15 15 15 15 14 15 14 14 15 15 15 5 Class Distribution -------------------- 20% | Mutant 13% | Scavenger-Gladiator 12% | Hacker-Sprinter 12% | Machinist-Gladiator 11% | Hacker-Gladiator 10% | Scavenger-Mutant 7% | Hacker-Scout 5% | Commander-Gladiator Dominant Class ---------------- Mutant | -10/Materials Mutant | -10/Mines Mutant | -10/Exiles Mutant | -9/Mines Scavenger-Mutant | -8/Materials Scavenger-Mutant | -8/Garrison Mutant | -8/Materials Hacker-Sprinter | -7/Factory Hacker-Sprinter | -7/Waste Hacker-Sprinter | -7/Factory Machinist-Sprinter | -7/Lower Caves Machinist-Sprinter | -7/Lower Caves Hacker-Sprinter | -7/Zion Hacker-Sprinter | -6/Proximity Caves Hacker-Scout | -6/Factory Hacker-Scout | -6/Waste Hacker-Scout | -6/Factory Machinist-Scout | -6/Garrison Hacker-Scout | -5/Factory Wizard-Sprinter | -5/Waste Hacker-Sprinter | -5/Factory Hacker-Gladiator | -5/Extension Commander-Gladiator | -5/Cetus Commander-Gladiator | -5/Archives Scavenger-Gladiator | -5/Hub_04(d) Scavenger-Gladiator | -4/Factory Hacker-Gladiator | -4/Waste Hacker-Gladiator | -4/Factory Machinist-Gladiator | -4/Upper Caves Machinist-Gladiator | -4/Upper Caves Machinist-Gladiator | -4/Warlord Machinist-Gladiator | -3/Proximity Caves Machinist-Gladiator | -3/Research Hacker-Gladiator | -3/DSF Hacker-Gladiator | -2/Research Machinist-Gladiator | -1/Access Machinist-Gladiator | -1/Command Resources | -11 -10 -10 -10 -9 -8 -8 -8 -7 -7 -7 -7 -7 -7 -6 -6 -6 -6 -6 -5 -5 -5 -5 -5 -5 -5 -4 -4 -4 -4 -4 -4 -3 -3 -3 -2 -1 -1 ----------- Run | Yrd Mat Min Exi Min Mat Gar Mat Fac Was Fac Low Low Zio Pro Fac Was Fac Gar Fac Was Fac Ext Cet Arc Hub Fac Was Fac Upp Upp War Pro Res DSF Res Acc Com Matter Collected 11025 | 250 524 338 . 402 1206 473 964 287 . 387 28 112 30 . 119 80 275 235 635 . 571 460 111 133 403 605 . 894 40 . 105 305 . 62 428 304 259 Remotely . | . . . . . . . . . . . . . . . . . . . . . . . . . . . . . . . . . . . . . . Salvage Created 24055 | 39 896 204 . 591 1362 563 1461 215 . 633 . 35 . . 170 . 579 305 338 . 677 1363 . 369 2259 3510 . 3245 55 . . 347 . 149 473 1462 2755 Parts 1224 | 3 62 8 . 42 98 20 85 28 . 24 . 2 . . 5 . 44 21 29 . 39 68 . 36 111 161 . 169 4 . . 17 . 3 28 74 43 Haulers Intercepted 17 | . 2 . . . 3 . 2 . . 1 . . . . 1 . 2 . 1 . . 1 . . . . . 2 . . . . . . 1 1 . Recyclers Shooed 6 | . 1 . . 2 1 . . . . . . . . . . . . . . . 1 1 . . . . . . . . . . . . . . . Parts Field Recycled . | . . . . . . . . . . . . . . . . . . . . . . . . . . . . . . . . . . . . . . Retrieved Matter . | . . . . . . . . . . . . . . . . . . . . . . . . . . . . . . . . . . . . . . Parts Self-Destructed 20 | . . . . . . . . . . . . 5 . . . . . . . . . . . . . . . . 4 . . 11 . . . . . Prevented . | . . . . . . . . . . . . . . . . . . . . . . . . . . . . . . . . . . . . . . Kills | -11 -10 -10 -10 -9 -8 -8 -8 -7 -7 -7 -7 -7 -7 -6 -6 -6 -6 -6 -5 -5 -5 -5 -5 -5 -5 -4 -4 -4 -4 -4 -4 -3 -3 -3 -2 -1 -1 ------- Run | Yrd Mat Min Exi Min Mat Gar Mat Fac Was Fac Low Low Zio Pro Fac Was Fac Gar Fac Was Fac Ext Cet Arc Hub Fac Was Fac Upp Upp War Pro Res DSF Res Acc Com Combat Hostiles Destroyed 342 | . 18 12 . 16 29 14 27 3 . . . . . . . . 8 12 4 . 21 12 . . 32 42 . 41 1 . . 12 . 6 4 20 8 Melee 149 | . . . . . . 1 . . . . . . . . . . . . . . 4 12 . . 25 39 . 41 1 . . 2 . 1 4 11 8 Guns 74 | . 18 8 . 8 22 6 12 . . . . . . . . . . . . . . . . . . . . . . . . . . . . . . Cannons 27 | . . . . . 6 7 14 . . . . . . . . . . . . . . . . . . . . . . . . . . . . . . AOE 91 | . . 4 . 8 1 . . 3 . . . . . . . . 8 12 4 . 17 . . . 7 3 . . . . . 10 . 5 . 9 . Classes Destroyed 21 | 1 7 2 . 2 4 . . . . . . 1 . . . . . 1 . . . 1 . . 1 . . . . . . . . 1 . . . Worker 31 | . 1 . . 2 2 . 1 2 . . . . . . 1 . . . 3 . 2 1 . . 9 2 . 2 . . . . . . . 3 . Builder 24 | . . . . 1 1 . 1 1 . . . . . . . . 2 . . . 1 4 . . 2 4 . 6 . . . . . . 1 . . Tunneler 8 | . 1 . . 2 1 . . 1 . . . . . . . . . . . . . . . . . 2 . . . . . . . . . 1 . Hauler 17 | . 2 . . . 3 . 2 . . 1 . . . . 1 . 2 . 1 . . 1 . . . . . 2 . . . . . . 1 1 . Recycler 27 | 1 . . . 1 1 . 1 . . 6 . . . . . . 1 . . . 1 2 . . 2 4 . 4 . . . . . . . 1 2 Minesweeper 2 | . . . . . . . . . . . . 1 . . . . . . . . . . . . . . . . 1 . . . . . . . . Mechanic 4 | . . . . . 1 . 1 . . . . . . . . . . . 1 . . . . . . 1 . . . . . . . . . . . Operator 22 | . 3 . . . 2 . 1 1 . . . . . . . . 1 . . . . 1 . 9 1 . . 1 . . . . . . 2 . . Watcher 51 | . 3 . . . 2 . 5 4 . 2 . . . . 1 . 4 . 4 . 5 3 . . 1 2 . 8 . . . . . . 2 3 2 Swarmer 101 | . 3 . . 3 9 . 6 3 . . . . . . . . 8 3 4 . 14 . . . 4 4 . 20 1 . . 8 . . 2 9 . Cutter 6 | . . . . . . . . . . . . . . . . . . 3 . . . . . . . . . . . . . . . 3 . . . Grunt 120 | . 15 4 . 12 10 12 10 . . . . . . . . . . 6 . . 7 3 . . 12 19 . 3 . . . 3 . . . 2 2 Brawler 3 | . . . . . 1 . 1 . . . . . . . . . . . . . . . . . . 1 . . . . . . . . . . . Duelist 8 | . . . . 1 2 . . . . . . . . . . . . . . . . . . . 2 2 . . . . . 1 . . . . . Protector 1 | . . . . . . . . . . . . . . . . . . . . . . . . . 1 . . . . . . . . . . . . Sentry 38 | . . . . . 5 . 9 . . . . . . . . . . . . . . 7 . . 3 5 . 7 . . . . . . 2 . . Demolisher 2 | . . 2 . . . . . . . . . . . . . . . . . . . . . . . . . . . . . . . . . . . Hunter 15 | . . . . . 2 2 1 . . . . . . . . . . . . . . . . . . . . 3 . . . . . 2 . 5 . Programmer 29 | . . . . . . . . . . . . . . . . . . . . . . 1 . . 4 11 . 8 . . . . . . . 4 1 Heavy 1 | . . . . . . . . . . . . . . . . . . . . . . . . . . . . . . . . . . 1 . . . M Guard 2 | . . . . . . . . . . . . . . . . . . . . . . . . . . . . . . . . . . . . . 2 Lightning 6 | . . . . . . . . . . . . . . . . . . . . . . . . . 6 . . . . . . . . . . . . Combat Programmer 1 | . . . . . . . . . . . . . . . . . . . . . . . . . . . . . . . . . . . . . 1 Packrat 1 | . . . . . . . . . . . . . . . . . . . . . . . . . . . . . . . . 1 . . . . . Assembled 6 | . . 6 . . . . . . . . . . . . . . . . . . . . . . . . . . . . . . . . . . . Thug 2 | . . . . . . . . . . . . . . . . . . . . . . 1 . 1 . . . . . . . . . . . . . Best Kill Streak 12 | 1 3 6 . 8 7 3 4 4 . 6 . 1 . . 1 . 5 3 5 . 6 3 . 4 7 12 . 7 1 . . 9 . 3 2 9 3 Combat Bots Only 12 | . 3 6 . 5 6 3 4 3 . . . . . . . . 4 3 4 . 5 3 . . 5 12 . 6 1 . . 9 . 3 2 9 3 Max Kills in Single Turn 6 | 1 2 2 . 3 2 1 3 2 . 1 . 1 . . 1 . 4 3 5 . 4 1 . 1 6 4 . 1 1 . . 2 . 2 1 4 1 Gunslinging 1 | . 1 . . . . . . . . . . . . . . . . . . . . . . . . . . . . . . . . . . . . Exploded 4 | . . 2 . 2 1 . . 2 . . . . . . . . 4 3 4 . 4 . . . 4 3 . . . . . 2 . 2 . 4 . Melee 1 | . . . . . . 1 . . . . . . . . . . . . . . 1 1 . . 1 1 . 1 1 . . 1 . 1 1 1 1 Uniques/NPCs Destroyed 2 | . . . . . . . . . . . . . . . . . . . . . . . . . . . . . . . . . . . . . 2 MAIN.C Shell (-1/Command) MAIN.C (-1/Command) Combat | -11 -10 -10 -10 -9 -8 -8 -8 -7 -7 -7 -7 -7 -7 -6 -6 -6 -6 -6 -5 -5 -5 -5 -5 -5 -5 -4 -4 -4 -4 -4 -4 -3 -3 -3 -2 -1 -1 -------- Run | Yrd Mat Min Exi Min Mat Gar Mat Fac Was Fac Low Low Zio Pro Fac Was Fac Gar Fac Was Fac Ext Cet Arc Hub Fac Was Fac Upp Upp War Pro Res DSF Res Acc Com Hostile Shots Fired 1600 | . 44 43 . 58 171 79 74 8 . 34 5 2 . 5 15 . 31 7 11 . 69 66 . . 132 206 . 219 7 13 4 12 2 33 22 146 82 Missed 511 | . 14 8 . 15 36 24 19 2 . 14 3 2 . 2 11 . 18 3 5 . 28 16 . . 20 66 . 78 3 4 1 3 1 10 15 71 19 Damage Taken 20443 | . 361 802 . 518 1824 815 381 206 . 485 36 . . 55 110 . 108 124 101 . 646 928 35 . 2449 2613 . 2354 168 164 79 103 10 510 129 1160 3169 Core 3052 | . 17 101 . 74 292 83 44 105 . 241 16 . . 20 56 . 25 37 37 . 88 134 . . 267 288 . 338 . 31 . 8 . 47 . 100 603 Absorbed by Shields 2303 | . . . . . 44 35 357 . . . . . . . 8 . . . . . . 352 37 . 419 . . 138 . . . 111 11 176 46 419 150 Reduced by Siege Mode 42 | . . . . . . . . . . . . . . . . . . . . . . . . . 42 . . . . . . . . . . . . Redirected to Shielding 310 | . . . . . . . . 26 . . . . . . . . . . . . . . . . . 104 . 101 . 20 . 9 . 50 . . . Ignored by Resistances 1500 | . . . . . . . . . . . . . . . . . . . . . 89 29 . . 864 251 . 248 . . . . . . . 19 . Regen/Repaired (Parts) 3797 | . . . . . 250 . 33 18 . 9 . . . . 147 . 18 . 90 . 220 . . . . 1502 . 968 . . 8 . . . . 498 36 Core Remaining (%) 61 | 100 . . . 23 . . 23 . . . . . . 45 . . . 86 . . . . . . 47 . . . . . . 42 . 96 100 . 56 Volleys Fired 460 | . 60 32 . 37 130 54 67 9 . . . . . . 2 . 8 19 5 . 12 . . . 5 1 . . . . . 9 . 7 . 3 . Largest 2 | . 2 2 . 2 2 2 2 1 . . . . . . 1 . 1 1 1 . 1 . . . 1 1 . . . . . 1 . 1 . 1 . Hottest 94 | . 80 53 . 53 73 62 94 90 . . . . . . 90 . 90 43 90 . 90 . . . 55 55 . . . . . 55 . 55 . 55 . Shots Fired 823 | . 119 60 . 64 260 106 134 9 . . . . . . 2 . 8 19 5 . 12 . . . 5 1 . . . . . 9 . 7 . 3 . Gun 572 | . 119 57 . 51 213 65 67 . . . . . . . . . . . . . . . . . . . . . . . . . . . . . . Cannon 169 | . . . . . 43 41 67 5 . . . . . . 2 . 5 . 3 . 3 . . . . . . . . . . . . . . . . Launcher 82 | . . 3 . 13 4 . . 4 . . . . . . . . 3 19 2 . 9 . . . 5 1 . . . . . 9 . 7 . 3 . Special . | . . . . . . . . . . . . . . . . . . . . . . . . . . . . . . . . . . . . . . Kinetic 700 | . 104 57 . 51 248 106 134 . . . . . . . . . . . . . . . . . . . . . . . . . . . . . . Thermal 18 | . . . . . . . . 5 . . . . . . 2 . 5 . 3 . 3 . . . . . . . . . . . . . . . . Explosive 82 | . . 3 . 13 4 . . 4 . . . . . . . . 3 19 2 . 9 . . . 5 1 . . . . . 9 . 7 . 3 . Electromagnetic 23 | . 15 . . . 8 . . . . . . . . . . . . . . . . . . . . . . . . . . . . . . . . Robot Hit Streak 19 | . 8 8 . 16 17 13 19 . . . . . . . . . 6 7 . . 4 . . . 8 9 . . . . . . . 10 . . . Robot Miss Streak 6 | . 6 1 . 4 6 3 2 . . . . . . . . . . 4 . . . . . . . . . . . . . . . . . . . Penetration Max 1 | . . . . . 1 . 1 . . . . . . . . . . . . . . . . . . . . . . . . . . . . . . Secondary Targets 10 | . 3 2 . 1 4 . . . . . . . . . . . . . . . . . . . . . . . . . . . . . . . . Max Gunslinging Chain 1 | . 1 1 . 1 1 . . . . . . . . . . . . . . . . . . . . . . . . . . . . . . . . Shots Hit Robots 1358 | . 61 41 . 39 175 70 95 15 . 18 . 4 . . 8 . 15 12 20 . 24 73 1 12 119 166 . 176 6 . 1 3 1 7 24 74 98 Core Hits 733 | . 37 29 . 36 71 30 51 12 . 7 . 1 . . 1 . 16 22 15 . 37 27 1 7 76 71 . 71 1 . 1 18 . 21 11 32 31 Critical Kills 15 | . . 1 . . . 1 13 . . . . . . . . . . . . . . . . . . . . . . . . . . . . . . Critical Parts Destroyed 25 | . 2 . . . 2 . 21 . . . . . . . . . . . . . . . . . . . . . . . . . . . . . . Critical Strikes 135 | . 2 1 . . 3 1 34 . . 2 . . . . 1 . . . 2 . 2 11 . . 20 18 . 18 1 . 1 . . 1 1 14 2 Destroy 40 | . 2 1 . . 2 1 34 . . . . . . . . . . . . . . . . . . . . . . . . . . . . . . Blast 1 | . . . . . 1 . . . . . . . . . . . . . . . . . . . . . . . . . . . . . . . . Sever 92 | . . . . . . . . . . 2 . . . . 1 . . . 2 . 2 11 . . 20 18 . 18 1 . 1 . . 1 1 14 . Sunder 2 | . . . . . . . . . . . . . . . . . . . . . . . . . . . . . . . . . . . . . 2 Melee Attacks 1362 | . . . . . 5 1 . 43 . 53 2 8 1 2 28 . 54 18 54 . 66 79 23 13 121 194 . 245 8 . 21 9 9 7 45 128 125 Impact . | . . . . . . . . . . . . . . . . . . . . . . . . . . . . . . . . . . . . . . Slashing 1312 | . . . . . 5 1 . 40 . 52 2 8 1 2 28 . 54 18 52 . 66 79 23 13 121 194 . 245 8 . 21 9 9 7 45 128 81 Piercing . | . . . . . . . . . . . . . . . . . . . . . . . . . . . . . . . . . . . . . . Entropic 44 | . . . . . . . . . . . . . . . . . . . . . . . . . . . . . . . . . . . . . 44 Sneak Attacks 111 | . . . . . . . . 7 . 9 . 1 . . 2 . 7 . 8 . 1 12 . 11 2 13 . 20 1 . . 1 1 . 3 8 4 Combat Hostiles 7 | . . . . . . . . . . . . . . . . . . . 1 . . 1 . . 1 . . 2 . . . . . . 1 . 1 Follow-up Attacks 106 | . . . . . . . . . . . . . . . . . . . . . . 7 . 1 8 15 . 15 1 . . . . . 6 14 39 Damage Inflicted 76991 | 2 1121 809 . 1524 3483 1157 2193 964 . 937 . 223 . . 441 . 1679 1840 1917 . 3542 3964 53 1425 7856 9064 . 9769 323 . 58 1997 88 1800 1443 6653 10666 Guns 6781 | . 1081 610 . 545 2449 691 1405 . . . . . . . . . . . . . . . . . . . . . . . . . . . . . . Cannons 1928 | . . . . . 705 462 761 . . . . . . . . . . . . . . . . . . . . . . . . . . . . . . Explosions 14609 | . 38 165 . 972 329 . . 285 . . . . . . . . 717 1414 680 . 2418 . . . 2371 441 . . . . . 1772 . 1515 . 1492 . Melee 53583 | . . . . . . . . 679 . 937 . 223 . . 441 . 962 426 1237 . 1124 3950 53 1425 5485 8623 . 9769 323 . 58 225 88 285 1443 5161 10666 Ramming 90 | 2 2 34 . 7 . 4 27 . . . . . . . . . . . . . . 14 . . . . . . . . . . . . . . . Kinetic 8484 | . 943 610 . 545 3067 1153 2166 . . . . . . . . . . . . . . . . . . . . . . . . . . . . . . Thermal 350 | . 38 . . . . . . . . . . . . . . . . . 212 . 100 . . . . . . . . . . . . . . . . Explosive 13634 | . . 165 . 972 329 . . 285 . . . . . . . . 717 1414 468 . 2318 . . . 1746 441 . . . . . 1772 . 1515 . 1492 . Electromagnetic 850 | . 138 . . . 87 . . . . . . . . . . . . . . . . . . . 625 . . . . . . . . . . . . Impact . | . . . . . . . . . . . . . . . . . . . . . . . . . . . . . . . . . . . . . . Slashing 49220 | . . . . . . . . 679 . 937 . 223 . . 441 . 962 426 1237 . 1124 3950 53 1425 5485 8623 . 9769 323 . 58 225 88 285 1443 5161 6303 Piercing . | . . . . . . . . . . . . . . . . . . . . . . . . . . . . . . . . . . . . . . Entropic 4363 | . . . . . . . . . . . . . . . . . . . . . . . . . . . . . . . . . . . . . 4363 Highest Corruption 22 | . . . . . . . . 1 10 15 15 15 15 . . . . 2 3 . 10 9 18 18 22 2 8 12 . . . . . . 2 6 19 Average Corruption 6 | . . . . . . . . 1 10 12 15 15 15 . . . . 2 2 . 8 5 15 3 5 1 5 8 . . . . . . 2 4 8 Corruption Purged 44 | . . . . . . . . 1 . . . . . . . . . . 3 . 4 6 . 17 . . . 13 . . . . . . . . . Corruption Blocked . | . . . . . . . . . . . . . . . . . . . . . . . . . . . . . . . . . . . . . . Effects 369 | . . . . . . . . . 1 60 2 8 1 . . . . 3 3 . 52 53 11 21 23 10 1 71 . . . . . . 7 19 23 Message Errors 86 | . . . . . . . . . . 14 1 1 . . . . . 1 . . 9 14 3 3 8 1 . 16 . . . . . . 1 5 9 Matter Fused 103 | . . . . . . . . . 1 15 . 3 1 . . . . . 1 . 17 12 4 9 7 4 . 16 . . . . . . 1 5 7 Heat Flow Errors 53 | . . . . . . . . . . 5 1 . . . . . . 1 1 . 8 13 1 2 1 2 1 9 . . . . . . 1 4 3 Energy Discharges 49 | . . . . . . . . . . 10 . 3 . . . . . 1 . . 6 6 1 3 2 . . 12 . . . . . . 2 1 2 Parts Rejected 6 | . . . . . . . . . . 1 . . . . . . . . . . 2 1 . . . . . 1 . . . . . . . 1 . Parts Fused 5 | . . . . . . . . . . 2 . . . . . . . . . . . 1 . . . 1 . 1 . . . . . . . . . Data Loss (minor) 41 | . . . . . . . . . . 4 . 1 . . . . . . 1 . 5 4 2 3 4 1 . 12 . . . . . . 2 1 1 Data Loss (major) 14 | . . . . . . . . . . 4 . . . . . . . . . . 3 2 . 1 . . . 2 . . . . . . . 1 1 Alerts 4 | . . . . . . . . . . . . . . . . . . . . . 1 . . . 1 1 . . . . . . . . . 1 . Misdirections 8 | . . . . . . . . . . 5 . . . . . . . . . . 1 . . . . . . 2 . . . . . . . . . Overload Shots . | . . . . . . . . . . . . . . . . . . . . . . . . . . . . . . . . . . . . . . Overflow Damage 6095 | . . . . 38 32 . 7 86 . 179 . 73 . . 131 . 219 72 277 . 237 427 . 458 197 781 . 847 75 . . 164 48 66 161 684 836 Projectiles 9 | . . . . . 4 . 5 . . . . . . . . . . . . . . . . . . . . . . . . . . . . . . Explosions 591 | . . . . 38 28 . . 25 . . . . . . . . 38 15 64 . 98 . . . 92 . . . . . . 41 . 57 . 95 . Melee 5495 | . . . . . . . 2 61 . 179 . 73 . . 131 . 181 57 213 . 139 427 . 458 105 781 . 847 75 . . 123 48 9 161 589 836 Knockbacks 34 | . . 1 . . 17 3 12 . . . . . . . . . . . . . . 1 . . . . . . . . . . . . . . . Impact 3 | . . 1 . . . . 1 . . . . . . . . . . . . . . 1 . . . . . . . . . . . . . . . Kinetic 30 | . . . . . 17 3 10 . . . . . . . . . . . . . . . . . . . . . . . . . . . . . . Secondary 1 | . . . . . . . 1 . . . . . . . . . . . . . . . . . . . . . . . . . . . . . . Self-Inflicted Damage 274 | . . . . . . . . 46 . . . . . . . . . . . . . . . . 109 . . . . . . 22 . 97 . . . Shots 5 | . . . . . . . . 1 . . . . . . . . . . . . . . . . 1 . . . . . . 1 . 2 . . . Rammed 4 | . 1 . . . . . 3 . . . . . . . . . . . . . . . . . . . . . . . . . . . . . . Targets Rammed 15 | 1 2 6 . 1 . 1 3 . . . . . . . . . . . . . . 1 . . . . . . . . . . . . . . . Kicked 8 | . . 6 . 1 . . . . . . . . . . . . . . . . . 1 . . . . . . . . . . . . . . . Crushed 3 | 1 1 . . . . 1 . . . . . . . . . . . . . . . . . . . . . . . . . . . . . . . Highest Temperature 410 | . 114 62 . 205 67 174 274 132 6 271 88 36 . 40 56 . 122 325 179 33 410 266 85 116 157 191 190 314 . . . . . . 84 270 265 Average Temperature 77 | . 23 14 . 68 10 45 69 55 4 107 44 24 . 15 26 . 41 105 33 16 126 98 60 57 61 69 134 113 . . . . . . 42 135 130 Received Heat Transfer 3366 | . 132 132 . 258 487 493 142 9 . 9 18 . . 27 18 . 24 9 . . 117 296 . . 164 540 . 271 . . 21 4 . . 6 36 153 Effects 13 | . . . . . . . . . . 1 . . . . . . . . . . 5 2 . . . . . 4 . . . . . . . 1 . Shutdowns 2 | . . . . . . . . . . . . . . . . . . . . . 2 . . . . . . . . . . . . . . . . Energy Bleed 5 | . . . . . . . . . . 1 . . . . . . . . . . 1 1 . . . . . 2 . . . . . . . . . Interference 5 | . . . . . . . . . . . . . . . . . . . . . 2 1 . . . . . 1 . . . . . . . 1 . Short Circuit 1 | . . . . . . . . . . . . . . . . . . . . . . . . . . . . 1 . . . . . . . . . Siege Activations 1 | . . . . . . . . . . . . . . . . . . . . . . . . . 1 . . . . . . . . . . . . Total Turns 12 | . . . . . . . . . . . . . . . . . . . . . . . . . 12 . . . . . . . . . . . . Longest Duration 12 | . . . . . . . . . . . . . . . . . . . . . . . . . 12 . . . . . . . . . . . . Robots Corrupted . | . . . . . . . . . . . . . . . . . . . . . . . . . . . . . . . . . . . . . . Combat Hostiles . | . . . . . . . . . . . . . . . . . . . . . . . . . . . . . . . . . . . . . . Parts Fried 10 | . 2 . . . . . 1 . . . . . . . . . . . . . . 2 . . 5 . . . . . . . . . . . . Impact Corruptions 1 | . . . . . . . 1 . . . . . . . . . . . . . . . . . . . . . . . . . . . . . . Robots Melted . | . . . . . . . . . . . . . . . . . . . . . . . . . . . . . . . . . . . . . . Combat Hostiles . | . . . . . . . . . . . . . . . . . . . . . . . . . . . . . . . . . . . . . . Parts Melted . | . . . . . . . . . . . . . . . . . . . . . . . . . . . . . . . . . . . . . . Heat Transferred 350 | . 50 . . . . . . . . . . . . . . . . . 250 . 50 . . . . . . . . . . . . . . . . Parts Sabotaged 8 | . . . . . . . . . . . . . . . . . . . . . . . . . 3 . . . . . . . . . . . 5 Parts Stolen . | . . . . . . . . . . . . . . . . . . . . . . . . . . . . . . . . . . . . . . Parts Stripped . | . . . . . . . . . . . . . . . . . . . . . . . . . . . . . . . . . . . . . . Power Chain Reactions 1 | . 1 . . . . . . . . . . . . . . . . . . . . . . . . . . . . . . . . . . . . Alert | -11 -10 -10 -10 -9 -8 -8 -8 -7 -7 -7 -7 -7 -7 -6 -6 -6 -6 -6 -5 -5 -5 -5 -5 -5 -5 -4 -4 -4 -4 -4 -4 -3 -3 -3 -2 -1 -1 ------- Run | Yrd Mat Min Exi Min Mat Gar Mat Fac Was Fac Low Low Zio Pro Fac Was Fac Gar Fac Was Fac Ext Cet Arc Hub Fac Was Fac Upp Upp War Pro Res DSF Res Acc Com Peak Influence 1820 | 5 283 92 . 264 459 566 459 359 15 208 . . . . 208 72 229 518 511 211 921 478 606 477 1820 1181 237 844 . . . . 242 485 422 633 675 Initial 891 | . 3 77 . . 62 200 275 191 1 10 . . . . . 72 50 53 271 151 147 189 193 242 4 891 222 165 . . . . 182 181 272 242 403 Average 329 | . 151 37 . 137 201 448 236 149 2 93 . . . . 46 72 102 336 240 174 659 286 398 271 944 644 230 380 . . . . 223 397 264 460 553 Maximum Alert Level 5 | . 1 . . 1 2 2 2 1 . 1 . . . . 1 . 1 2 2 1 3 2 2 2 5 4 1 3 . . . . 1 2 2 2 2 Low Security (%) 39 | 100 73 100 . 71 58 . 45 65 100 99 . . . . 98 100 81 21 39 93 4 17 9 35 4 . . 29 . . . . 8 10 17 . . Level 1 26 | . 26 . . 28 22 27 42 34 . . . . . . 1 . 18 40 36 6 13 70 48 35 . 2 100 30 . . . . 91 35 78 33 . Level 2 24 | . . . . . 18 72 12 . . . . . . . . . . 38 23 . 18 12 42 28 24 71 . 25 . . . . . 54 3 66 100 Level 3 8 | . . . . . . . . . . . . . . . . . . . . . 63 . . . 45 24 . 14 . . . . . . . . . Level 4 . | . . . . . . . . . . . . . . . . . . . . . . . . . 16 1 . . . . . . . . . . . Level 5 . | . . . . . . . . . . . . . . . . . . . . . . . . . 9 . . . . . . . . . . . . High Security . | . . . . . . . . . . . . . . . . . . . . . . . . . . . . . . . . . . . . . . Max Security . | . . . . . . . . . . . . . . . . . . . . . . . . . . . . . . . . . . . . . . Squads Dispatched 124 | . 5 . . 1 6 . 7 12 . 11 . . . . 4 . 6 . 7 . 4 1 . . 11 14 . 19 . . . . 1 2 3 6 4 Investigation 53 | . 3 . . . 1 . 3 9 . 6 . . . . 1 . 2 . 3 . 2 . . . 1 6 . 9 . . . . 1 . 2 2 2 Extermination 21 | . . . . . . . . 1 . 2 . . . . . . . . 2 . 1 . . . 3 5 . 4 . . . . . . . 2 1 Reinforcement 32 | . 2 . . 1 2 . 1 2 . 3 . . . . 3 . 4 . 2 . 1 1 . . 3 . . 3 . . . . . 2 1 1 . Assault 12 | . . . . . . . . . . . . . . . . . . . . . . . . . 4 3 . 3 . . . . . . . 1 1 Garrison 6 | . . . . . 3 . 3 . . . . . . . . . . . . . . . . . . . . . . . . . . . . . . Intercept . | . . . . . . . . . . . . . . . . . . . . . . . . . . . . . . . . . . . . . . Searches Triggered 1 | . . . . . . . . . . . . . . . . . . . . . 1 . . . . . . . . . . . . . . . . Construction Impeded 2 | . . . . 1 . . . . . . . . . . . . . . . . . . . . 1 . . . . . . . . . . . . Haulers Reinforced 4 | . . . . . . . . . . . . . . . . . . . 1 . . . . . . . . 2 . . . . . . . 1 . Active Scanning Responses . | . . . . . . . . . . . . . . . . . . . . . . . . . . . . . . . . . . . . . . Cargo Convoy Interrupts 2 | . . . . . . . . . . 1 . . . . . . . . 1 . . . . . . . . . . . . . . . . . . Stealth | -11 -10 -10 -10 -9 -8 -8 -8 -7 -7 -7 -7 -7 -7 -6 -6 -6 -6 -6 -5 -5 -5 -5 -5 -5 -5 -4 -4 -4 -4 -4 -4 -3 -3 -3 -2 -1 -1 --------- Run | Yrd Mat Min Exi Min Mat Gar Mat Fac Was Fac Low Low Zio Pro Fac Was Fac Gar Fac Was Fac Ext Cet Arc Hub Fac Was Fac Upp Upp War Pro Res DSF Res Acc Com Distress Signals 52 | . 2 . . 1 3 . 2 2 . 4 . . . 1 2 . . . . . 3 2 2 . 5 5 . 2 . . . . 1 . 4 5 6 Communications Jammed . | . . . . . . . . . . . . . . . . . . . . . . . . . . . . . . . . . . . . . . Distress Signals . | . . . . . . . . . . . . . . . . . . . . . . . . . . . . . . . . . . . . . . Times Spotted 694 | . 27 13 . 16 46 14 40 22 5 29 6 1 . 9 15 . 17 8 26 4 45 30 7 3 68 60 2 64 7 4 9 6 1 10 11 44 25 Peak Tracking Total 14 | . 4 8 . 3 7 3 3 4 5 8 6 1 . 14 4 . 3 3 6 4 14 4 5 1 11 8 3 6 7 4 4 5 3 5 6 11 9 Tactical Retreats 92 | . . . . 3 2 . 5 7 . 9 2 . . . 5 . 5 . 5 . 9 1 . . 5 5 . 8 5 1 1 . 1 1 5 6 1 Traps | -11 -10 -10 -10 -9 -8 -8 -8 -7 -7 -7 -7 -7 -7 -6 -6 -6 -6 -6 -5 -5 -5 -5 -5 -5 -5 -4 -4 -4 -4 -4 -4 -3 -3 -3 -2 -1 -1 ------- Run | Yrd Mat Min Exi Min Mat Gar Mat Fac Was Fac Low Low Zio Pro Fac Was Fac Gar Fac Was Fac Ext Cet Arc Hub Fac Was Fac Upp Upp War Pro Res DSF Res Acc Com Traps Triggered 49 | . 2 . . . . . 2 4 . 4 . . . . 3 . 1 . 3 . 5 . . . 3 8 . 6 . . . . . 3 . 2 3 Indirectly . | . . . . . . . . . . . . . . . . . . . . . . . . . . . . . . . . . . . . . . Trap Hack Attempts 50 | . . . . . . . . 16 . . . . . . . . . . 34 . . . . . . . . . . . . . . . . . . Triggered . | . . . . . . . . . . . . . . . . . . . . . . . . . . . . . . . . . . . . . . Disarmed 2 | . . . . . . . . . . . . . . . . . . . 2 . . . . . . . . . . . . . . . . . . Reprogrammed 41 | . 5 . . . . . . 10 . 10 . . . . . . 1 . 12 . . . . . . . . 3 . . . . . . . . . Reused 15 | . 1 . . . . . . . . 4 . . . . . . 3 . 4 . . . . . . . . 3 . . . . . . . . . Traps Extracted 12 | . . . . . . . . 4 . . . 1 . . . . . . 7 . . . . . . . . . . . . . . . . . . Installed 12 | . . . . . . . . . . 4 . . . . . . 2 . 4 . . . . . . . . . 2 . . . . . . . . Triggered 25 | . 1 . . . . . . . . 4 . . . . . . 4 . 4 . . . . . . . . 3 . . 9 . . . . . . Most Traps Carried 5 | . . . . . . . . 4 4 4 . 2 2 2 2 2 2 . 5 3 3 3 3 3 3 3 . . . . . . . . . . . Objects Rigged 13 | . . . . . . . . . . . . . . . . . . . . . 13 . . . . . . . . . . . . . . . . Machines | -11 -10 -10 -10 -9 -8 -8 -8 -7 -7 -7 -7 -7 -7 -6 -6 -6 -6 -6 -5 -5 -5 -5 -5 -5 -5 -4 -4 -4 -4 -4 -4 -3 -3 -3 -2 -1 -1 ---------- Run | Yrd Mat Min Exi Min Mat Gar Mat Fac Was Fac Low Low Zio Pro Fac Was Fac Gar Fac Was Fac Ext Cet Arc Hub Fac Was Fac Upp Upp War Pro Res DSF Res Acc Com Machines Disabled 47 | . 1 1 . . 2 . 5 1 . . . . . 1 1 . 3 2 3 . 5 1 2 1 16 1 . . . . . . . . 1 . . Max in Single Turn 16 | . 1 1 . . 1 . 1 1 . . . . . 1 1 . 1 1 2 . 4 . . . 16 1 . . . . . . . . 1 . . Garrison Access 23 | . . . . . . . . 3 . 3 . . . . 2 . 3 . 1 . 2 . . . . 2 . 4 . . . . . . 2 1 . Garrison Relay 1 | . . . . . . . . . . . . . . . . . . 1 . . . . . . . . . . . . . . . . . . . Network Hub 3 | . . . . . . . . . . . . . . . . . . . . . . . . . 3 . . . . . . . . . . . . Machines Repaired . | . . . . . . . . . . . . . . . . . . . . . . . . . . . . . . . . . . . . . . Machines Dismantled . | . . . . . . . . . . . . . . . . . . . . . . . . . . . . . . . . . . . . . . Machines Sabotaged . | . . . . . . . . . . . . . . . . . . . . . . . . . . . . . . . . . . . . . . Overloaded Fab Kills . | . . . . . . . . . . . . . . . . . . . . . . . . . . . . . . . . . . . . . . Hacking | -11 -10 -10 -10 -9 -8 -8 -8 -7 -7 -7 -7 -7 -7 -6 -6 -6 -6 -6 -5 -5 -5 -5 -5 -5 -5 -4 -4 -4 -4 -4 -4 -3 -3 -3 -2 -1 -1 --------- Run | Yrd Mat Min Exi Min Mat Gar Mat Fac Was Fac Low Low Zio Pro Fac Was Fac Gar Fac Was Fac Ext Cet Arc Hub Fac Was Fac Upp Upp War Pro Res DSF Res Acc Com Machines Accessed 245 | . 7 1 2 . 9 1 12 21 . 25 . 3 . 1 10 . 25 . 17 . 13 9 . . 6 19 . 30 2 . 5 . 2 . 5 11 9 Terminals 130 | . 4 1 . . 7 1 8 11 . 12 . . . 1 4 . 10 . 9 . 7 9 . . 6 9 . 13 . . . . 1 . 2 8 7 Fabricators 30 | . . . . . . . . 5 . 6 . . . . 2 . 3 . 2 . 3 . . . . 2 . 5 . . . . 1 . . 1 . Repair Stations 23 | . 1 . . . 1 . 1 1 . 2 . . . . 1 . 3 . 2 . 1 . . . . 2 . 5 . . . . . . 1 1 1 Recycling Units 13 | . 2 . . . . . . . . 1 . . . . . . 2 . 2 . . . . . . 2 . 3 . . . . . . . . 1 Scanalyzers 12 | . . . . . . . 2 1 . 1 . . . . 1 . 3 . 1 . . . . . . 2 . 1 . . . . . . . . . Garrison Access 25 | . . . . . 1 . 1 3 . 3 . . . . 2 . 4 . 1 . 2 . . . . 2 . 3 . . . . . . 2 1 . Total Hacks 802 | . 18 1 5 . 35 2 42 58 . 59 . 7 . 2 32 . 62 . 45 . 35 23 . . 19 113 . 132 5 . 8 . 5 . 21 39 34 Successful 525 | . 12 1 5 . 21 . 30 38 . 43 . 7 . 1 24 . 44 . 32 . 24 9 . . 6 63 . 103 5 . 8 . 3 . 9 21 16 Failed 275 | . 5 . . . 14 2 12 20 . 16 . . . 1 8 . 18 . 13 . 11 14 . . 13 49 . 29 . . . . 2 . 12 18 18 Catastrophic 43 | . . . . . . . 1 3 . 2 . . . . . . 2 . 2 . 1 1 . . 4 11 . 8 . . . . . . 4 1 3 Database Lockouts 2 | . 1 . . . . . . . . . . . . . . . . . . . . . . . . 1 . . . . . . . . . . . Manual 269 | . 12 . 1 . 14 . 16 28 . 26 1 . . . 10 . 18 . 23 . 11 6 1 . 5 42 . 37 . . . . . . 2 10 6 Terminals 456 | . 15 1 . . 27 2 26 41 . 32 . . . 2 13 . 30 . 25 . 24 23 . . 19 59 . 55 . . . . 1 . 10 28 23 Fabricators 70 | . . . . . . . . 11 . 10 . . . . 4 . 6 . 3 . 6 . . . . 6 . 16 . . . . 4 . . 4 . Repair Stations 128 | . 1 . . . 7 . 4 2 . 5 . . . . 6 . 7 . 7 . 3 . . . . 29 . 40 . . . . . . 5 6 6 Recycling Units 30 | . 2 . . . . . . . . 1 . . . . . . 5 . 6 . . . . . . 4 . 7 . . . . . . . . 5 Scanalyzers 50 | . . . . . . . 10 1 . 7 . . . . 4 . 8 . 3 . . . . . . 9 . 8 . . . . . . . . . Garrison Access 43 | . . . . . 1 . 2 3 . 4 . . . . 5 . 6 . 1 . 2 . . . . 6 . 6 . . . . . . 6 1 . Terminal Hacks 214 | . 7 1 5 . 11 . 13 14 . 14 . 7 . 1 6 . 14 . 11 . 11 9 . . 4 19 . 29 5 . 8 . 1 . 5 10 9 Record 23 | . . . 4 . . . . . . . . 5 . . . . . . . . . . . . . . . 2 4 . 6 . . . . . 2 Part Schematic 7 | . . . . . . . 1 1 . . . . . . 1 . . . 2 . . . . . . 1 . 1 . . . . . . . . . Robot Schematic 1 | . . . . . . . 1 . . . . . . . . . . . . . . . . . . . . . . . . . . . . . . Robot Analysis 9 | . 2 . . . 4 . . . . . . . . . . . . . . . . . . . . . . 3 . . . . . . . . . Prototype ID Bank 2 | . . . . . . . 2 . . . . . . . . . . . . . . . . . . . . . . . . . . . . . . Open Door 17 | . . . . . . . . . . . . 2 . 1 . . . . . . 1 6 . . . . . . 1 . 2 . . . . 3 1 Open DSF 2 | . . . . . . . . . . . . . . . . . . . . . . . . . . . . . . . . . 1 . 1 . . Level Access Points 1 | . . . . . . . . . . . . . . . . . . . . . . . . . . . . . . . . . . . . . 1 Branch Access Points 4 | . . . . . . . . . . . . . . . . . 1 . . . 1 . . . . 1 . . . . . . . . . 1 . Machine Index 5 | . . . . . . . . . . . . . . . . . 1 . . . 1 . . . . 1 . 1 . . . . . . 1 . . Terminal Index 8 | . . . . . 1 . . 1 . 1 . . . . 1 . 1 . 1 . . . . . . 1 . . . . . . . . . . 1 Fabricator Index 3 | . . . . . . . . 1 . . . . . . 1 . . . . . . . . . . . . . . . . . . . . 1 . Repair Station Index 2 | . . . . . . . . . . 1 . . . . . . . . . . . . . . . . . . . . . . . . . . 1 Scanalyzer Index 1 | . . . . . . . . . . 1 . . . . . . . . . . . . . . . . . . . . . . . . . . . Garrison Index 1 | . . . . . . . . . . 1 . . . . . . . . . . . . . . . . . . . . . . . . . . . Alert Level 24 | . . . . . 1 . 2 2 . 1 . . . . . . 1 . 1 . 2 1 . . 1 5 . 4 . . . . . . 1 1 1 Unreport Threat 36 | . . . . . 2 . 2 2 . . . . . . . . 4 . 2 . 4 2 . . 3 6 . 5 . . . . . . 2 2 . Locate Traps 18 | . 2 . . . 1 . 3 . . 2 . . . . 1 . 3 . 2 . . . . . . 1 . 2 . . . . . . . . 1 Reprogram Traps 7 | . 2 . . . . . . 1 . 2 . . . . . . 1 . . . . . . . . . . 1 . . . . . . . . . Dispatch Records 1 | . . 1 . . . . . . . . . . . . . . . . . . . . . . . . . . . . . . . . . . . Patrol Status 2 | . . . . . . . . . . . . . . . 1 . . . 1 . . . . . . . . . . . . . . . . . . Transport Status 1 | . . . . . . . . 1 . . . . . . . . . . . . . . . . . . . . . . . . . . . . . Investigation Status 2 | . . . . . . . . 1 . . . . . . . . . . . . . . . . . . . 1 . . . . . . . . . Recall Investigation 15 | . . . . . . . 1 2 . 2 . . . . 1 . 1 . . . 1 . . . . 2 . 4 . . . . . . . 1 . Recall Extermination 6 | . . . . . . . . . . 2 . . . . . . . . 1 . 1 . . . . . . 1 . . . . . . . 1 . Recall Reinforcements 4 | . . . . . 1 . . . . 1 . . . . . . . . . . . . . . . . . 2 . . . . . . . . . Recall Assault 3 | . . . . . . . . . . . . . . . . . . . . . . . . . . 1 . 2 . . . . . . . . . Hauler Manifests 5 | . 1 . . . 1 . 1 2 . . . . . . . . . . . . . . . . . . . . . . . . . . . . . Zone Layout 2 | . . . . . . . . . . . . . . . . . 1 . 1 . . . . . . . . . . . . . . . . . . Derelict Proto ID Bank 1 | . . . 1 . . . . . . . . . . . . . . . . . . . . . . . . . . . . . . . . . . Disengage Seal 1 | . . . . . . . . . . . . . . . . . . . . . . . . . . . . . . . . . . . . . 1 Fabricator Hacks 52 | . . . . . . . . 11 . 8 . . . . 2 . 4 . 2 . 4 . . . . 5 . 10 . . . . 2 . . 4 . Network Status 4 | . . . . . . . . 1 . 1 . . . . . . 1 . 1 . . . . . . . . . . . . . . . . . . Load Schematic 22 | . . . . . . . . 5 . 3 . . . . 1 . 1 . . . 2 . . . . 2 . 5 . . . . 1 . . 2 . Build 26 | . . . . . . . . 5 . 4 . . . . 1 . 2 . 1 . 2 . . . . 3 . 5 . . . . 1 . . 2 . Repair Station Hacks 103 | . . . . . 6 . 4 2 . 3 . . . . 6 . 5 . 7 . 3 . . . . 23 . 37 . . . . . . 2 3 2 Scan Component 53 | . . . . . 3 . 2 1 . 1 . . . . 3 . 3 . 3 . 1 . . . . 12 . 19 . . . . . . 2 2 1 Repair 47 | . . . . . 3 . 2 1 . 1 . . . . 3 . 2 . 3 . 1 . . . . 11 . 18 . . . . . . . 1 1 Refit 3 | . . . . . . . . . . 1 . . . . . . . . 1 . 1 . . . . . . . . . . . . . . . . Recycling Unit Hacks 11 | . . . . . . . . . . 1 . . . . . . 1 . 3 . . . . . . 2 . 3 . . . . . . . . 1 Retrieve Components 11 | . . . . . . . . . . 1 . . . . . . 1 . 3 . . . . . . 2 . 3 . . . . . . . . 1 Scanalyzer 40 | . . . . . . . 9 . . 7 . . . . 2 . 7 . 2 . . . . . . 5 . 8 . . . . . . . . . Insert Component 18 | . . . . . . . 4 . . 3 . . . . 1 . 4 . 1 . . . . . . 2 . 3 . . . . . . . . . Analyze 22 | . . . . . . . 5 . . 4 . . . . 1 . 3 . 1 . . . . . . 3 . 5 . . . . . . . . . Garrison Access Hacks 23 | . . . . . 1 . . 3 . 3 . . . . 2 . 4 . 1 . 2 . . . . 2 . 3 . . . . . . 1 1 . Unlock Access 2 | . . . . . 1 . . . . . . . . . . . 1 . . . . . . . . . . . . . . . . . . . . Seal Access 21 | . . . . . . . . 3 . 3 . . . . 2 . 3 . 1 . 2 . . . . 2 . 3 . . . . . . 1 1 . Unauthorized Hacks 82 | . 5 . . . 3 . 4 8 . 7 . . . . 6 . 9 . 6 . 4 . . . 2 7 . 13 . . . . . . 1 3 4 Terminals 59 | . 3 . . . 3 . 4 7 . 6 . . . . 4 . 5 . 4 . 4 . . . 2 4 . 6 . . . . . . 1 3 3 Assimilate 22 | . . . . . 1 . . 4 . 4 . . . . 1 . 3 . 1 . 2 . . . 1 . . 3 . . . . . . . 1 1 Botnet 32 | . 2 . . . 2 . 4 3 . 2 . . . . 2 . 2 . 2 . 1 . . . 1 4 . 2 . . . . . . 1 2 2 Detonate 1 | . . . . . . . . . . . . . . . . . . . . . 1 . . . . . . . . . . . . . . . . Operators 4 | . 1 . . . . . . . . . . . . . 1 . . . 1 . . . . . . . . 1 . . . . . . . . . Fabricators 10 | . . . . . . . . . . 1 . . . . 2 . 1 . 1 . . . . . . 1 . 4 . . . . . . . . . Report 1 | . . . . . . . . . . . . . . . . . . . . . . . . . . . . 1 . . . . . . . . . Prioritize 2 | . . . . . . . . . . . . . . . . . . . . . . . . . . 1 . 1 . . . . . . . . . Liberate 1 | . . . . . . . . . . . . . . . . . . . . . . . . . . . . 1 . . . . . . . . . Haulers 6 | . . . . . . . . . . 1 . . . . 2 . 1 . 1 . . . . . . . . 1 . . . . . . . . . Repair Stations . | . . . . . . . . . . . . . . . . . . . . . . . . . . . . . . . . . . . . . . Recycling Units 12 | . 2 . . . . . . . . . . . . . . . 3 . 1 . . . . . . 2 . 3 . . . . . . . . 1 Reject 9 | . . . . . . . . . . . . . . . . . 2 . 1 . . . . . . 2 . 3 . . . . . . . . 1 Recyclers 1 | . . . . . . . . . . . . . . . . . 1 . . . . . . . . . . . . . . . . . . . . Tunnel 2 | . 2 . . . . . . . . . . . . . . . . . . . . . . . . . . . . . . . . . . . . Scanalyzers 1 | . . . . . . . . 1 . . . . . . . . . . . . . . . . . . . . . . . . . . . . . Extract 1 | . . . . . . . . 1 . . . . . . . . . . . . . . . . . . . . . . . . . . . . . Garrison Access . | . . . . . . . . . . . . . . . . . . . . . . . . . . . . . . . . . . . . . . Data Cores Recovered 2 | . 1 . . . 1 . . . . . . . . . . . . . . . . . . . . . . . . . . . . . . . . Used . | . . . . . . . . . . . . . . . . . . . . . . . . . . . . . . . . . . . . . . Hacking Detections 152 | . 5 . . . 7 1 8 15 . 14 . . . . 8 . 17 . 12 . 10 6 . . 5 13 . 15 . . . . 1 . 3 6 6 Full Trace Events 44 | . . . . . 2 1 2 8 . 6 . . . . 1 . 2 . 3 . 2 . . . 1 4 . 7 . . . . 1 . 2 2 . Feedback Events 4 | . . . . . . . . 2 . . . . . . . . . . 1 . . . . . 1 . . . . . . . . . . . . Corruption 3 | . . . . . . . . 1 . . . . . . . . . . 1 . . . . . 1 . . . . . . . . . . . . Hackware Fried 1 | . . . . . . . . 1 . . . . . . . . . . . . . . . . . . . . . . . . . . . . . Feedback Blocked 1 | . . . . . . . . . . . . . . . . . 1 . . . . . . . . . . . . . . . . . . . . Robot Schematics Acquired 4 | . . . . . . . 1 . . . . . 3 . . . . . . . . . . . . . . . . . . . . . . . . Robots Built 1 | . . . . . . . . . . . . . . . . . . . 1 . . . . . . . . . . . . . . . . . . Authchips . | . . . . . . . . . . . . . . . . . . . . . . . . . . . . . . . . . . . . . . Time 81 | . . . . . . . . . . . . . . . . . . . 81 . . . . . . . . . . . . . . . . . . Total Robot Build Rating 1 | . . . . . . . . . . . . . . . . . . . 1 . . . . . . . . . . . . . . . . . . Part Schematics Acquired 42 | . . . . . . . 5 4 . 3 . . 16 . 2 . 2 . 3 . . . . . . 3 . 4 . . . . . . . . . Parts Built 32 | . . . . . . . . 6 . 4 . . . . 1 . 3 . . . 4 . . . . 3 . 8 . . . . 1 . . 2 . Authchips 2 | . . . . . . . . . . . . . . . . . . . . . . . . . . . . . . . . . . . . 2 . Time 1834 | . . . . . . . . 433 . 231 . . . . 67 . 198 . . . 245 . . . . 160 . 308 . . . . 68 . . 124 . Total Part Build Rating 207 | . . . . . . . . 20 . 21 . . . . 4 . 20 . . . 30 . . . . 20 . 70 . . . . 8 . . 14 . Parts Repaired 47 | . . . . . 3 . 2 1 . 1 . . . . 3 . 2 . 3 . 1 . . . . 11 . 18 . . . . . . . 1 1 Time 2149 | . . . . . 84 . 82 13 . 39 . . . . 210 . 130 . 208 . 22 . . . . 486 . 837 . . . . . . . 18 20 Parts Recycled . | . . . . . . . . . . . . . . . . . . . . . . . . . . . . . . . . . . . . . . Recycled Matter . | . . . . . . . . . . . . . . . . . . . . . . . . . . . . . . . . . . . . . . Retrieved Matter . | . . . . . . . . . . . . . . . . . . . . . . . . . . . . . . . . . . . . . . Retrieved Components 53 | . . . . . . . . . . 2 . . . . . . 1 . 4 . . . . . . 20 . 16 . . . . . . . . 10 Parts Scanalyzed 16 | . . . . . . . 4 . . 3 . . . . 1 . 2 . 1 . . . . . . 2 . 3 . . . . . . . . . Part Schematics Acquired 16 | . . . . . . . 4 . . 3 . . . . 1 . 2 . 1 . . . . . . 2 . 3 . . . . . . . . . Parts Damaged 3 | . . . . . . . . . . . . . . . . . 1 . . . . . . . . . . 2 . . . . . . . . . Bothacking | -11 -10 -10 -10 -9 -8 -8 -8 -7 -7 -7 -7 -7 -7 -6 -6 -6 -6 -6 -5 -5 -5 -5 -5 -5 -5 -4 -4 -4 -4 -4 -4 -3 -3 -3 -2 -1 -1 ------------ Run | Yrd Mat Min Exi Min Mat Gar Mat Fac Was Fac Low Low Zio Pro Fac Was Fac Gar Fac Was Fac Ext Cet Arc Hub Fac Was Fac Upp Upp War Pro Res DSF Res Acc Com Used RIF Installer . | . . . . . . . . . . . . . . . . . . . . . . . . . . . . . . . . . . . . . . Robots Hacked 4 | . . . . . . . . 2 . 1 . . . . . . . . 1 . . . . . . . . . . . . . . . . . . Non-combat 4 | . . . . . . . . 2 . 1 . . . . . . . . 1 . . . . . . . . . . . . . . . . . . Combat . | . . . . . . . . . . . . . . . . . . . . . . . . . . . . . . . . . . . . . . Robot Hacks Applied 5 | . . . . . . . . 3 . 1 . . . . . . . . 1 . . . . . . . . . . . . . . . . . . parse_system 2 | . . . . . . . . 1 . 1 . . . . . . . . . . . . . . . . . . . . . . . . . . . no_distress 1 | . . . . . . . . 1 . . . . . . . . . . . . . . . . . . . . . . . . . . . . . find_chute 2 | . . . . . . . . 1 . . . . . . . . . . 1 . . . . . . . . . . . . . . . . . . Relay Couplers Released 6 | . . . . . . . . . . . . . . . . . . 3 . . . . . . . . . . . . . . . . 3 . . Machine Destruction 6 | . . . . . . . . . . . . . . . . . . 3 . . . . . . . . . . . . . . . . 3 . . Fabnet Peak Effective % . | . . . . . . . . . . . . . . . . . . . . . . . . . . . . . . . . . . . . . . Robots Rewired 22 | . . . . . . . . . . . . . . . 1 . . . . . . 16 . . . . . . . . 5 . . . . . . Allies Hacked 1 | . . . . . . . . . . . . . . . . . . . . . . 1 . . . . . . . . . . . . . . . Hacks Repelled . | . . . . . . . . . . . . . . . . . . . . . . . . . . . . . . . . . . . . . . Allies | -11 -10 -10 -10 -9 -8 -8 -8 -7 -7 -7 -7 -7 -7 -6 -6 -6 -6 -6 -5 -5 -5 -5 -5 -5 -5 -4 -4 -4 -4 -4 -4 -3 -3 -3 -2 -1 -1 -------- Run | Yrd Mat Min Exi Min Mat Gar Mat Fac Was Fac Low Low Zio Pro Fac Was Fac Gar Fac Was Fac Ext Cet Arc Hub Fac Was Fac Upp Upp War Pro Res DSF Res Acc Com Total Allies 71 | . . 3 . 2 1 . . 4 . 4 . . 4 . 2 . 3 . 2 1 2 26 5 . . . . 2 3 . 5 . . . . 1 1 Largest Group 17 | . . 3 . 2 1 . . 2 1 3 . . 4 4 2 . 1 . 2 1 1 17 14 11 7 . . 1 3 . 5 . . . . 1 1 Highest-Rated Group 791 | . . 40 . 45 14 . . 52 26 46 . . 110 110 58 . 26 . 32 31 26 629 791 791 479 . . 26 138 . 275 . . . . 45 45 Highest-Rated Ally 159 | . . 16 . 31 14 . . 26 26 26 . . 31 31 32 . 26 . 26 31 26 159 153 146 96 . . 26 46 . 68 . . . . 45 45 Total Orders 12 | . . . . . 1 . . 2 . . . . . . 2 . . . 1 . . . . . 2 . . 1 . . 2 . . . . 1 . STAY 7 | . . . . . 1 . . 1 . . . . . . 1 . . . . . . . . . 2 . . 1 . . 1 . . . . . . ROAM 1 | . . . . . . . . . . . . . . . . . . . 1 . . . . . . . . . . . . . . . . . . FOLLOW 3 | . . . . . . . . 1 . . . . . . 1 . . . . . . . . . . . . . . . 1 . . . . . . EXPLORE 1 | . . . . . . . . . . . . . . . . . . . . . . . . . . . . . . . . . . . . 1 . Ally Attacks 341 | . . 1 . . . . . . . . . . . 5 2 . . . . . . 122 69 22 98 . . . . . 22 . . . . . . Total Damage 9631 | . . 18 . . . . . . . . . . . 105 58 . . . . . . 3293 1436 518 3389 . . . . . 814 . . . . . . Kills 60 | . . . . . . . . . . . . . . 1 . . . . . . . 14 14 4 22 . . . . . 5 . . . . . . Allies Corrupted 1 | . . . . . . . . . . . . . . . 1 . . . . . . . . . . . . . . . . . . . . . . Allies Melted 2 | . . . . . . . . . . . . . . . . . . . . . . . . . . . . . . . . . . . 2 . . Intel | -11 -10 -10 -10 -9 -8 -8 -8 -7 -7 -7 -7 -7 -7 -6 -6 -6 -6 -6 -5 -5 -5 -5 -5 -5 -5 -4 -4 -4 -4 -4 -4 -3 -3 -3 -2 -1 -1 ------- Run | Yrd Mat Min Exi Min Mat Gar Mat Fac Was Fac Low Low Zio Pro Fac Was Fac Gar Fac Was Fac Ext Cet Arc Hub Fac Was Fac Upp Upp War Pro Res DSF Res Acc Com Robot Analysis Total 9 | . 2 . . . 4 . . . . . . . . . . . . . . . . . . . . . . 3 . . . . . . . . . Derelict Logs Recovered 11 | . . 1 . 2 . . . . . . 3 1 1 1 . . . . . . . . . . . . . . 1 1 . . . . . . . Drone Launches 2 | . . . . . . . . . . . . . . . . . . . . . . . . . . . . . . . . . . . . 2 . Drone Recoveries . | . . . . . . . . . . . . . . . . . . . . . . . . . . . . . . . . . . . . . . Exploration | -11 -10 -10 -10 -9 -8 -8 -8 -7 -7 -7 -7 -7 -7 -6 -6 -6 -6 -6 -5 -5 -5 -5 -5 -5 -5 -4 -4 -4 -4 -4 -4 -3 -3 -3 -2 -1 -1 ------------- Run | Yrd Mat Min Exi Min Mat Gar Mat Fac Was Fac Low Low Zio Pro Fac Was Fac Gar Fac Was Fac Ext Cet Arc Hub Fac Was Fac Upp Upp War Pro Res DSF Res Acc Com Turns Passed 36497 | 92 1711 1516 393 956 1955 962 3074 1615 37 1476 100 189 372 109 734 58 1386 246 1434 15 1472 1931 322 1245 1393 3462 31 3871 257 132 581 389 316 131 765 1029 740 Spaces Moved 42061 | 52 927 703 207 445 775 437 1513 3652 124 2903 363 590 838 369 1851 176 3718 471 2894 64 2716 1208 155 280 695 2440 74 4194 473 275 925 692 423 154 1660 1721 904 Core 18 | 2 . 4 . . . . . . . . . . . . 4 . 1 . 7 . . . . . . . . . . . . . . . . . . Treads 4604 | 50 927 200 . . 523 437 1513 . . . . . . . . . . . . . . . 131 280 543 . . . . . . . . . . . . Legs 4993 | . . 499 207 445 252 . . . . . . . . . . . . . . . . 1002 24 . 152 2412 . . . . . . . . . . . Wheels . | . . . . . . . . . . . . . . . . . . . . . . . . . . . . . . . . . . . . . . Hover 11523 | . . . . . . . . . . . . . . . . . . . . . . . . . . 28 74 4194 473 275 925 692 423 154 1660 1721 904 Flight 20923 | . . . . . . . . 3652 124 2903 363 590 838 369 1847 176 3717 471 2887 64 2716 206 . . . . . . . . . . . . . . . Fastest Speed 5 | 50 160 160 190 190 120 160 160 30 24 14 14 14 26 14 17 24 5 17 6 21 6 19 120 160 100 40 40 40 45 45 39 39 39 39 37 36 35 Average Speed 57 | 155 160 194 190 190 169 160 162 30 29 29 25 25 26 25 26 24 24 21 21 21 22 124 153 160 147 99 40 43 45 45 43 40 39 39 37 36 43 Slowest Speed 500 | 160 160 500 190 190 240 160 163 110 30 91 26 26 26 26 350 24 400 23 400 21 84 330 160 160 240 104 40 157 45 45 45 122 39 39 39 36 129 Overloaded Moves 275 | . . . . . . . . . 7 40 8 5 . 8 22 . 19 144 13 . 6 3 . . . . . . . . . . . . . . . Propulsion Burnouts 1 | . . . . . . . . . . . . . . 1 . . . . . . . . . . . . . . . . . . . . . . . Robots Hopped 71 | . . . . . . . . 17 2 21 1 . . . . . 10 . 12 . 6 2 . . . . . . . . . . . . . . . Cave-ins Triggered . | . . . . . . . . . . . . . . . . . . . . . . . . . . . . . . . . . . . . . . Exploration Rate (%) 65 | 4 96 99 61 95 68 54 90 71 86 68 60 61 85 47 47 90 78 35 61 96 52 86 59 90 69 42 72 79 65 54 97 70 7 97 42 39 28 Regions Visited 37 Branch Regions 16 Pre-discovered Areas 7 | . 2 . 1 1 . . . . . . . 2 1 . . . . . . . . . . . . . . . . . . . . . . . . Known Exits Taken 11 | . . . 1 . 1 . . . . 1 1 1 . 1 . . 1 . . . 1 . . . . . . 1 . . . . 1 . . 1 . Unknown Exits Taken 15 | 1 1 1 . 1 . . 1 . . . . . 1 . . . . . . . . 1 1 1 1 . . . 1 1 1 1 . . 1 . . Scrap Searched 19 | . . . . 2 . . . . . . 2 3 3 . . . . . . . . . . . . . . . 3 2 . 4 . . . . . Spaces Dug 392 | . . . . . 2 1 . 27 . 28 2 3 . 1 14 . 40 56 33 . 44 2 1 . 3 18 . 52 2 . 16 5 6 . 6 20 10 Terrain Destroyed 1480 | . 3 14 . 84 13 1 27 31 . 28 2 3 . 1 14 . 60 222 93 . 211 2 1 . 189 33 . 52 2 . 16 203 6 104 6 49 10 Melee 308 | . . . . . 2 1 . 22 . 28 2 3 . 1 12 . 35 8 30 . 23 2 1 . 3 18 . 52 2 . 16 5 6 . 6 20 10 Projectile 47 | . . . . . 2 . 27 5 . . . . . . 2 . 5 . 3 . 3 . . . . . . . . . . . . . . . . AOE 1125 | . 3 14 . 84 9 . . 4 . . . . . . . . 20 214 60 . 185 . . . 186 15 . . . . . 198 . 104 . 29 . Terrain Rammed . | . . . . . . . . . . . . . . . . . . . . . . . . . . . . . . . . . . . . . . Walls Destroyed . | . . . . . . . . . . . . . . . . . . . . . . . . . . . . . . . . . . . . . . Machines Disabled . | . . . . . . . . . . . . . . . . . . . . . . . . . . . . . . . . . . . . . . Actions | -11 -10 -10 -10 -9 -8 -8 -8 -7 -7 -7 -7 -7 -7 -6 -6 -6 -6 -6 -5 -5 -5 -5 -5 -5 -5 -4 -4 -4 -4 -4 -4 -3 -3 -3 -2 -1 -1 --------- Run | Yrd Mat Min Exi Min Mat Gar Mat Fac Was Fac Low Low Zio Pro Fac Was Fac Gar Fac Was Fac Ext Cet Arc Hub Fac Was Fac Upp Upp War Pro Res DSF Res Acc Com Total 52268 | 60 1060 795 207 499 1161 593 2008 4068 123 3431 364 611 990 379 2043 189 4094 561 3597 65 3452 1602 233 1074 1010 3357 75 6064 510 282 1087 781 572 219 1805 2033 1214 Wait 7228 | . 31 42 . 7 189 83 382 275 . 409 . 10 144 8 145 . 277 44 544 . 589 178 40 763 158 639 . 1530 22 7 75 57 132 10 65 171 202 Move 41891 | 51 926 702 206 444 775 436 1512 3619 120 2861 360 589 837 368 1851 175 3698 470 2870 63 2704 1203 154 279 694 2440 73 4193 472 274 924 691 422 153 1659 1719 904 Hop 67 | . . . . . . . . 16 1 20 1 . . . . . 10 . 12 . 5 2 . . . . . . . . . . . . . . . Pick Up 176 | 3 15 2 1 1 6 3 13 16 1 4 . . 2 . 1 1 8 . 5 1 7 5 . 6 4 22 1 18 1 . 2 2 2 4 12 5 2 Fast Attach 200 | 5 3 3 . . 19 3 4 4 . 15 . . 2 . 4 4 5 . 21 . 8 10 5 4 14 23 . 16 1 . 6 1 . 1 7 3 9 Attach 121 | . . 4 . 1 4 1 . 13 . 4 . . . 1 1 . . . 9 . 11 5 . 3 5 10 . 9 . 1 . 6 3 8 2 9 11 Detach 86 | . 1 . . . 4 1 . 7 . 7 . . 1 . . . . . 12 . 12 5 . 3 4 4 . 3 . . 1 3 1 6 1 5 5 Swap 270 | . 10 3 . 7 16 5 7 15 . 7 1 4 . . 4 4 18 10 11 . 11 16 3 . 4 25 . 56 4 . 3 1 4 . 7 8 6 Drop 259 | . 12 1 . 1 13 5 20 17 1 11 . . 3 . 1 5 11 . 16 1 9 16 11 5 9 22 1 23 1 . 11 3 1 2 21 1 5 Fire 460 | . 60 32 . 37 130 54 67 9 . . . . . . 2 . 8 19 5 . 12 . . . 5 1 . . . . . 9 . 7 . 3 . Melee 1178 | . . . . . 5 1 . 43 . 53 2 8 1 2 28 . 54 18 54 . 66 69 20 11 111 171 . 216 7 . 17 8 7 7 31 98 70 Ram . | . . . . . . . . . . . . . . . . . . . . . . . . . . . . . . . . . . . . . . Kick 8 | . . 6 . 1 . . . . . . . . . . . . . . . . . 1 . . . . . . . . . . . . . . . Crush 7 | 1 2 . . . . 1 3 . . . . . . . . . . . . . . . . . . . . . . . . . . . . . . Escape Stasis 110 | . . . . . . . . 18 . 36 . . . . 1 . 3 . . . 18 2 . . . . . . . . . . . 21 . 11 . Rewire 143 | . . . . . . . . . . . . . . . 5 . . . . . . 90 . . . . . . . . 48 . . . . . . Trap 62 | . . . . . . . . 16 . 4 . . . . . . 2 . 38 . . . . . . . . . 2 . . . . . . . . Miscellaneous 2 | . . . . . . . . . . . . . . . . . . . . . . . . . 2 . . . . . . . . . . . . Route ------- -11/Scrapyard -10/Materials (discovered 5 exits: [*Mat x3] / *Min x2) -10/Mines (discovered 3 exits: [*Mat x2] / *Exi) -10/Exiles (discovered 2 exits: *Min x2) -9/Mines (discovered 2 exits: *Mat x2) -8/Materials (discovered 2 exits: *Fac / Gar) -8/Garrison (discovered 2 exits: *Mat x2) -8/Materials (discovered 2 exits: *Fac x2) -7/Factory (discovered 5 exits: *Fac x2 / *Sto / *Low x2) -7/Waste -7/Factory (discovered 4 exits: *Fac x2 / *Low x2) -7/Lower Caves -7/Lower Caves -7/Zion -6/Proximity Caves -6/Factory (discovered 3 exits: *Fac x2 / *Low) -6/Waste -6/Factory (discovered 6 exits: *Fac x3 / *Low x2 / Gar) -6/Garrison -5/Factory (discovered 3 exits: *Fac / *Upp / *Ext) -5/Waste -5/Factory (discovered 5 exits: *Fac / *Upp x2 / *Ext x2) -5/Extension (discovered 2 exits: *Fac / *Cet) -5/Cetus -5/Archives (discovered 3 exits: *Fac / *Hub x2) -5/Hub_04(d) (discovered 2 exits: *Fac x2) -4/Factory (discovered 5 exits: *Res x2 / Upp x2 / Arm) -4/Waste -4/Factory (discovered 4 exits: *Res x2 / *Upp x2) -4/Upper Caves -4/Upper Caves (discovered 2 exits: *Res / *War) -4/Warlord -3/Proximity Caves -3/Research (discovered 4 exits: Res x2 / Qua / DSF) -3/DSF -2/Research (discovered 2 exits: *Acc / [*Tes]) -1/Access -1/Command (discovered 2 exits: Sur x2) 0b10 Command History --------- Turn | Location | Event 43 | -11/Scrapyard | Discovered new exit (range 16) 93 | -11/Scrapyard | Entered Materials 293 | -10/Materials | Central database locked down 318 | -10/Materials | Build established: Mutant 481 | -10/Materials | Discovered new exit (range 15) 663 | -10/Materials | Discovered new exit (range 4) 836 | -10/Materials | Discovered new exit (range 15) 1019 | -10/Materials | Discovered new exit (range 10) 1234 | -10/Materials | Discovered new exit (range 16) 1804 | -10/Materials | Entered Mines 1805 | -10/Mines | Assembled infested the area 1810 | -10/Mines | Assisted by a Guerilla fighting off Assembled 2096 | -10/Mines | Assisted by bots powering up and referring to "LRC-V3" 2221 | -10/Mines | Lost 3 allies 2256 | -10/Mines | Lost 4 parts (1p2n1w) 2335 | -10/Mines | Deemed a non-threat by the Exiles lab entrance 2335 | -10/Mines | Discovered new exit (range 5) 2434 | -10/Mines | Discovered new exit (range 10) 2644 | -10/Mines | Discovered new exit (range 4) 3320 | -10/Mines | Entered Exiles 3321 | -10/Exiles | Identified exit to Mines 3372 | -10/Exiles | Met 8R-AWN 3398 | -10/Exiles | Met EX-HEX 3453 | -10/Exiles | Met EX-BIN 3476 | -10/Exiles | Aligned with FarCom system 3478 | -10/Exiles | Given EX-Vault access code 3522 | -10/Exiles | Opened EX-Vault 3533 | -10/Exiles | Found Longsword +1 3572 | -10/Exiles | Warned to stay clear of 0b10 Research branches 3629 | -10/Exiles | Met EX-DEC 3643 | -10/Exiles | Learned location of Zion (-7) 3713 | -10/Exiles | Left Exiles lab with Longsword +1 3713 | -10/Exiles | Entered Mines 3722 | -9/Mines | Core integrity fell below 50% 4156 | -9/Mines | Discovered new exit (range 9) 4311 | -9/Mines | A weapon hastily lodged in a ceiling crevice suddenly fell to the ground 4511 | -9/Mines | Learned location of Recycling (-7) 4638 | -9/Mines | Discovered new exit (range 15) 4669 | -9/Mines | Entered Materials 4669 | -8/Materials | Accompanied by 1 ally 4669 | -8/Materials | Evolved 4 slots: Propulsion x1, Utility x3 5181 | -8/Materials | Lost 6 parts (1p2n2u1w) 5449 | -8/Materials | Build established: Scavenger-Mutant 5934 | -8/Materials | Discovered new exit (range 3) 6074 | -8/Materials | Garrison activated, responded to threat 6315 | -8/Materials | Core integrity fell below 50% 6350 | -8/Materials | Lost 4 parts (1p2n1u) 6478 | -8/Materials | Repaired Lgt. Treads 6512 | -8/Materials | Repaired Imp. Light Cannon 6539 | -8/Materials | Repaired Lgt. Treads 6624 | -8/Materials | Identified exit to Garrison 6624 | -8/Materials | Entered Garrison 6874 | -8/Garrison | Triggered checkpoint 7009 | -8/Garrison | Discovered new exit (range 15) 7014 | -8/Garrison | Triggered checkpoint 7095 | -8/Garrison | Triggered checkpoint 7192 | -8/Garrison | Triggered checkpoint 7226 | -8/Garrison | Discovered new exit (range 8) 7586 | -8/Garrison | Entered Materials 7977 | -8/Materials | Discovered new exit (range 15) 8277 | -8/Materials | Build established: Mutant 8540 | -8/Materials | Discovered new exit (range 10) 8844 | -8/Materials | Repaired Structural Scanner 8901 | -8/Materials | Repaired Remote Force Field 9556 | -8/Materials | Garrison activated, responded to threat 10660 | -8/Materials | Entered Factory 10660 | -7/Factory | Evolved 2 slots: Propulsion x1, Utility x1 10661 | -7/Factory | Identified exit to Storage 10998 | -7/Factory | Discovered new exit (range 13) 11006 | -7/Factory | Discovered new exit (range 5) 11018 | -7/Factory | Build established: Hacker-Sprinter 11214 | -7/Factory | Fabricated Trap Extractor? 11323 | -7/Factory | Discovered new exit (range 8) 11449 | -7/Factory | Fabricated Cld. VTOL Module? 11475 | -7/Factory | Fabricated Cld. VTOL Module? 11485 | -7/Factory | Discovered new exit (range 12) 11556 | -7/Factory | Fabricated Cld. VTOL Module? 11581 | -7/Factory | Fabricated Cld. VTOL Module? 11715 | -7/Factory | Hacking Suite fried by hacking feedback 11765 | -7/Factory | Repaired Structural Scanner 12275 | -7/Factory | Manually triggered Chute Trap 12275 | -7/Factory | Sucked down chute 12275 | -7/Factory | Entered Waste 12278 | -7/Waste | Spotted C-40 Crusher 12290 | -7/Waste | EMP discharged 12290 | -7/Waste | System corruption reached 10% 12300 | -7/Waste | 1 allies followed down the chute 12302 | -7/Waste | Spotted C-40 Crusher 12304 | -7/Waste | Spotted C-40 Crusher 12304 | -7/Waste | Spotted C-40 Crusher 12304 | -7/Waste | Spotted C-40 Crusher 12306 | -7/Waste | Spotted C-40 Crusher 12308 | -7/Waste | Discovered new exit (range 13) 12312 | -7/Waste | Entered Factory 12344 | -7/Factory | Discovered new exit (range 16) 12419 | -7/Factory | Repaired Corrupted Adv. Hacking Suite 12783 | -7/Factory | Fabricated Cld. VTOL Module? 12943 | -7/Factory | Fabricated Adv. Hacking Suite? 13468 | -7/Factory | Cargo convoy interrupted 13537 | -7/Factory | Found Prototype Processor 13537 | -7/Factory | Identified Exp. Signal Interpreter 13548 | -7/Factory | Discovered new exit (range 22) 13555 | -7/Factory | Identified exit to Factory 13596 | -7/Factory | Discovered exit to Factory (range 16) 13606 | -7/Factory | Discovered new exit (range 15) 13632 | -7/Factory | Fabricated Adv. Hacking Suite? 13695 | -7/Factory | Fabricated Exp. Weapon Shielding? 13787 | -7/Factory | Identified exit to Lower Caves 13788 | -7/Factory | Entered Lower Caves 13790 | -7/Lower Caves | Core integrity fell below 50% 13832 | -7/Lower Caves | Discovered new exit (range 19) 13851 | -7/Lower Caves | Learned location of 1 exit from Factory 13853 | -7/Lower Caves | Learned 4 Factory zone layouts 13856 | -7/Lower Caves | Learned Factory stockpile data 13867 | -7/Lower Caves | Acquired the password to a Derelict Tinkerer's latest research 13888 | -7/Lower Caves | Identified exit to Lower Caves 13888 | -7/Lower Caves | Entered another Lower Caves area 13891 | -7/Lower Caves | Learned location of Extension (-5) 13936 | -7/Lower Caves | Learned location of Armory (-4) 13936 | -7/Lower Caves | Learned Research trap positions 13936 | -7/Lower Caves | Learned Factory garrison access intel 14038 | -7/Lower Caves | Discovered new exit (range 18) 14045 | -7/Lower Caves | Identified exit to Zion 14077 | -7/Lower Caves | Build established: Machinist-Sprinter 14077 | -7/Lower Caves | Entered Zion 14083 | -7/Zion | Learned 4 Factory zone layouts 14091 | -7/Zion | System corruption cleaned by Quarantine Array 14094 | -7/Zion | Discovered new exit (range 20) 14111 | -7/Zion | Found Unknown Piercing Weapon 14166 | -7/Zion | Acquired unknown access codes intercepted by a Zionite 14219 | -7/Zion | Learned location of Storage (-7) 14278 | -7/Zion | Found Prototype Processor 14285 | -7/Zion | Gained Derelict followers 14449 | -7/Zion | Build established: Hacker-Sprinter 14449 | -7/Zion | Entered Proximity Caves 14449 | -6/Proximity Caves | Accompanied by 4 allies 14484 | -6/Proximity Caves | Learned Factory non-interactive machine intel 14510 | -6/Proximity Caves | Spotted B-75 Beast 14545 | -6/Proximity Caves | Snuck into a huge 0b10 base via the rear entrance 14555 | -6/Proximity Caves | Discovered exit to Factory (range 3) 14558 | -6/Proximity Caves | Entered Factory 14558 | -6/Factory | Evolved 2 slots: Propulsion x1, Utility x1 14559 | -6/Factory | Identified exit to Lower Caves 14562 | -6/Factory | Loaded intel: 280 non-interactive machine locations 14563 | -6/Factory | Loaded intel: 4 garrison access locations 14619 | -6/Factory | Identified Exp. Melee Analysis Suite 14830 | -6/Factory | Fabricated Cld. VTOL Module? 14843 | -6/Factory | Discovered new exit (range 11) 14909 | -6/Factory | Repaired Cld. VTOL Module? 14958 | -6/Factory | Discovered new exit (range 22) 14965 | -6/Factory | Build established: Hacker-Scout 14995 | -6/Factory | Repaired Cld. VTOL Module? 15126 | -6/Factory | Repaired Cld. VTOL Module? 15292 | -6/Factory | Sucked down chute 15292 | -6/Factory | Entered Waste 15292 | -6/Waste | The area was eerily silent 15325 | -6/Waste | Found Prototype Device 15325 | -6/Waste | Identified Exp. ECM Suite 15339 | -6/Waste | Discovered new exit (range 10) 15350 | -6/Waste | Entered Factory 15478 | -6/Factory | Fabricated Mic. Antimatter Reactor (x2) 15704 | -6/Factory | Discovered new exit (range 4) 15767 | -6/Factory | Discovered new exit (range 23) 15796 | -6/Factory | Repaired Broken Mic. Antimatter Reactor? 15802 | -6/Factory | Discovered exit to Lower Caves (range 7) 15959 | -6/Factory | Fabricated Cld. VTOL Module (x1) 16116 | -6/Factory | Found Prototype Processor 16121 | -6/Factory | Discovered exit to Lower Caves (range 4) 16179 | -6/Factory | Spotted B-75 Beast 16209 | -6/Factory | Discovered new exit (range 22) 16305 | -6/Factory | Repaired Cld. VTOL Module 16339 | -6/Factory | Identified Exp. Targeting Computer 16736 | -6/Factory | Identified exit to Garrison 16736 | -6/Factory | Entered Garrison 16813 | -6/Garrison | Triggered checkpoint 16844 | -6/Garrison | Garrison Relay disabled 16888 | -6/Garrison | Triggered checkpoint 16933 | -6/Garrison | Discovered new exit (range 10) 16982 | -6/Garrison | Entered Factory 16982 | -5/Factory | Evolved 2 slots: Power x1, Propulsion x1 17123 | -5/Factory | Discovered new exit (range 22) 17401 | -5/Factory | Discovered new exit (range 18) 17435 | -5/Factory | Fabricated K-01 Serf? 17894 | -5/Factory | Discovered new exit (range 6) 17915 | -5/Factory | Spotted B-75 Beast 17996 | -5/Factory | Cargo convoy interrupted 18015 | -5/Factory | Found Prototype Launcher 18015 | -5/Factory | Identified Ragnarok Missile Launcher 18018 | -5/Factory | Found Prototype Launcher 18018 | -5/Factory | Identified Gui. Micro-nuke Launcher 18027 | -5/Factory | Found Prototype Device 18027 | -5/Factory | Identified Exp. Shock Absorption System 18029 | -5/Factory | Found Prototype Processor 18029 | -5/Factory | Identified Exp. Core Analyzer 18251 | -5/Factory | Repaired Mic. Antimatter Reactor? 18307 | -5/Factory | Build established: Wizard-Sprinter 18310 | -5/Factory | Repaired Cld. VTOL Module 18382 | -5/Factory | Repaired Cld. VTOL Module 18416 | -5/Factory | Manually triggered Chute Trap 18416 | -5/Factory | Sucked down chute 18416 | -5/Factory | Entered Waste 18417 | -5/Waste | Met a frightened Derelict 18418 | -5/Waste | Spotted C-40 Crusher 18421 | -5/Waste | Spotted C-40 Crusher 18423 | -5/Waste | Spotted C-40 Crusher 18423 | -5/Waste | Spotted C-40 Crusher 18425 | -5/Waste | Discovered new exit (range 22) 18426 | -5/Waste | Spotted C-40 Crusher 18427 | -5/Waste | Found Prototype Device 18428 | -5/Waste | Spotted C-40 Crusher 18431 | -5/Waste | EMP discharged 18431 | -5/Waste | Entered Factory 18439 | -5/Factory | Identified Thermal Barrier 18529 | -5/Factory | Identified exit to Upper Caves 18529 | -5/Factory | Identified exit to Extension 18592 | -5/Factory | Spotted B-75 Beast 18731 | -5/Factory | Search patrols dispatched 18860 | -5/Factory | Discovered new exit (range 15) 19033 | -5/Factory | Build established: Hacker-Sprinter 19220 | -5/Factory | Fabricated Mic. Antimatter Reactor? 19240 | -5/Factory | System corruption reached 10% 19374 | -5/Factory | Fabricated Nanoactuators (x2) 19426 | -5/Factory | Repaired Imp. Medium Armor Plating 19903 | -5/Factory | Entered Extension 20323 | -5/Extension | Rescued a captive Derelict 20323 | -5/Extension | Rescued a captive Derelict 20381 | -5/Extension | Build established: Hacker-Gladiator 20439 | -5/Extension | Rescued a captive Derelict 20439 | -5/Extension | Rescued a captive Derelict 20521 | -5/Extension | Rescued a captive Derelict 20524 | -5/Extension | Rescued a captive Derelict 20659 | -5/Extension | Rescued a captive Derelict 20801 | -5/Extension | Rescued a captive Derelict 20802 | -5/Extension | Rescued a captive Derelict 20809 | -5/Extension | Rescued A7 20869 | -5/Extension | P-70 Sage assimilated allied PZ-UYY(g) 21178 | -5/Extension | Build established: Commander-Gladiator 21285 | -5/Extension | Spotted B-75 Beast 21295 | -5/Extension | Spotted B-75 Beast 21296 | -5/Extension | Allies destroyed B-75 Beast 21306 | -5/Extension | Allies destroyed B-75 Beast 21333 | -5/Extension | Lost 3 allies 21414 | -5/Extension | Lost 4 allies 21528 | -5/Extension | Disrupted transfer network 21810 | -5/Extension | Discovered new exit (range 10) 21812 | -5/Extension | Discovered new exit (range 6) 21834 | -5/Extension | Entered Cetus 21834 | -5/Cetus | Accompanied by 14 allies (A7) 21839 | -5/Cetus | Acquired a Cetus Manufacturing Module code from A7 21858 | -5/Cetus | Spotted Cetus Guard 21858 | -5/Cetus | Spotted Cetus Guard 21863 | -5/Cetus | Allies destroyed Cetus Guard 21863 | -5/Cetus | Spotted Cetus Guard 21863 | -5/Cetus | Spotted Cetus Guard 21866 | -5/Cetus | Allies destroyed Cetus Guard 21874 | -5/Cetus | Allies destroyed Cetus Guard 21878 | -5/Cetus | Allies destroyed Cetus Guard 21905 | -5/Cetus | Lost 4 allies 21976 | -5/Cetus | Started Cetus Manufacturing Module 22001 | -5/Cetus | Manufactured an Enhanced Grunt 22026 | -5/Cetus | Manufactured an Enhanced Grunt 22051 | -5/Cetus | Manufactured an Enhanced Grunt 22076 | -5/Cetus | Manufactured an Enhanced Grunt 22101 | -5/Cetus | Manufactured an Enhanced Grunt 22104 | -5/Cetus | Escorted A7 to Cetus Mainframe 22128 | -5/Cetus | Discovered new exit (range 16) 22156 | -5/Cetus | Entered Archives 22156 | -5/Archives | Accompanied by 11 allies (A7) 22161 | -5/Archives | Received a hacking code to weaken MAIN.C 22234 | -5/Archives | Discovered new exit (range 16) 22253 | -5/Archives | Discovered new exit (range 16) 22314 | -5/Archives | Discovered new exit (range 14) 22606 | -5/Archives | Build established: Scavenger-Gladiator 22933 | -5/Archives | Build established: Commander-Gladiator 23401 | -5/Archives | Entered Hub_04(d) 23401 | -5/Hub_04(d) | Accompanied by 7 allies 23437 | -5/Hub_04(d) | Discovered new exit (range 16) 23701 | -5/Hub_04(d) | First assault squad dispatched 23741 | -5/Hub_04(d) | Build established: Scavenger-Gladiator 24041 | -5/Hub_04(d) | Discovered new exit (range 14) 24435 | -5/Hub_04(d) | Network Hub disabled 24472 | -5/Hub_04(d) | Spotted Lightning 24478 | -5/Hub_04(d) | Spotted Lightning 24479 | -5/Hub_04(d) | Spotted Lightning 24508 | -5/Hub_04(d) | Destroyed Lightning 24519 | -5/Hub_04(d) | Destroyed Lightning 24535 | -5/Hub_04(d) | Destroyed Lightning 24552 | -5/Hub_04(d) | Network Hub disabled 24566 | -5/Hub_04(d) | Found Prototype Device 24566 | -5/Hub_04(d) | Identified Exp. Phase Shifter 24572 | -5/Hub_04(d) | Found Prototype Device 24572 | -5/Hub_04(d) | Identified Exp. EM Disruption Field 24651 | -5/Hub_04(d) | Network Hub disabled 24664 | -5/Hub_04(d) | Spotted Lightning 24664 | -5/Hub_04(d) | Spotted Lightning 24691 | -5/Hub_04(d) | Core integrity fell below 50% 24691 | -5/Hub_04(d) | Spotted Lightning 24707 | -5/Hub_04(d) | Destroyed Lightning 24721 | -5/Hub_04(d) | Destroyed Lightning 24736 | -5/Hub_04(d) | Found Exp. Phase Shifter 24762 | -5/Hub_04(d) | Build established: Scavenger-Mutant 24779 | -5/Hub_04(d) | Destroyed Lightning 24794 | -5/Hub_04(d) | Entered Factory 24794 | -4/Factory | Evolved 2 slots: Utility x2 25044 | -4/Factory | First assault squad dispatched 25384 | -4/Factory | Destroyed 12 combat bots 25389 | -4/Factory | Lost 4 parts (2p2u) 25486 | -4/Factory | Build established: Scavenger-Gladiator 25642 | -4/Factory | Discovered new exit (range 6) 25820 | -4/Factory | Discovered new exit (range 15) 25913 | -4/Factory | Repaired Exp. EM Disruption Field 25932 | -4/Factory | Repaired Imp. Weapon Shielding 26228 | -4/Factory | Repaired Broken Enh. Biometal Leg 26372 | -4/Factory | Repaired Enh. Biometal Leg 26428 | -4/Factory | Repaired Enh. Biometal Leg 26621 | -4/Factory | Fabricated Adv. Hacking Suite? 26672 | -4/Factory | Identified exit to Upper Caves 26672 | -4/Factory | Identified exit to Armory 27429 | -4/Factory | Central database locked down 27567 | -4/Factory | Fabricated Centrium Leg (x1) 27610 | -4/Factory | Fabricated Exp. Weapon Shielding (x1) 27980 | -4/Factory | Repaired Imp. Medium Armor Plating 28035 | -4/Factory | Repaired Enh. Biometal Leg 28091 | -4/Factory | Repaired Enh. Biometal Leg 28146 | -4/Factory | Repaired Enh. Biometal Leg 28182 | -4/Factory | Repaired Lgt. Antimatter Reactor 28210 | -4/Factory | Repaired Microactuators 28256 | -4/Factory | Sucked down chute 28256 | -4/Factory | Entered Waste 28262 | -4/Waste | Spotted C-40 Crusher 28267 | -4/Waste | Spotted C-40 Crusher 28267 | -4/Waste | Spotted C-40 Crusher 28267 | -4/Waste | Spotted C-40 Crusher 28271 | -4/Waste | EMP discharged 28275 | -4/Waste | Spotted C-40 Crusher 28281 | -4/Waste | Discovered new exit (range 16) 28287 | -4/Waste | Entered Factory 28444 | -4/Factory | Discovered exit to Upper Caves (range 7) 28508 | -4/Factory | Build established: Hacker-Gladiator 28556 | -4/Factory | Discovered exit to Upper Caves (range 15) 28627 | -4/Factory | Repaired Broken Cmb. Linear Gravjet 28735 | -4/Factory | Fabricated Cmb. Linear Gravjet (x2) 28996 | -4/Factory | Fabricated Cmb. Linear Gravjet (x2) 29178 | -4/Factory | System corruption reached 10% 29375 | -4/Factory | Fabricated Nanosword (x1) 29421 | -4/Factory | Repaired Cmb. Linear Gravjet 29459 | -4/Factory | Repaired Cmb. Linear Gravjet 29504 | -4/Factory | Repaired Broken Adv. Actuator Array 30289 | -4/Factory | Repaired Imp. Medium Armor Plating 30327 | -4/Factory | Repaired Cmb. Linear Gravjet 30393 | -4/Factory | Repaired Adv. System Restoration Module 30860 | -4/Factory | Fabricated Cmb. Linear Gravjet (x2) 30867 | -4/Factory | Fabricated Nanosword (x1) 30989 | -4/Factory | Core integrity fell below 50% 31117 | -4/Factory | Repaired Lgt. Antimatter Reactor 31186 | -4/Factory | Repaired Broken Exp. EM Disruption Field 31195 | -4/Factory | Build established: Machinist-Gladiator 31224 | -4/Factory | Repaired Cmb. Linear Gravjet 31266 | -4/Factory | Repaired Exp. Weapon Shielding 31380 | -4/Factory | Repaired Cmb. Linear Gravjet 31443 | -4/Factory | Repaired Lgt. Antimatter Reactor 31519 | -4/Factory | Repaired Cmb. Linear Gravjet 31537 | -4/Factory | First assault squad dispatched 31594 | -4/Factory | Repaired Cmb. Linear Gravjet 31701 | -4/Factory | Repaired Cmb. Linear Gravjet 31824 | -4/Factory | Discovered new exit (range 14) 32017 | -4/Factory | Found Prototype Device 32017 | -4/Factory | Identified Adv. EM Disruption Field 32092 | -4/Factory | Repaired Broken Cmb. Linear Gravjet 32107 | -4/Factory | Repaired Imp. Medium Armor Plating 32158 | -4/Factory | Discovered new exit (range 7) 32158 | -4/Factory | Entered Upper Caves 32187 | -4/Upper Caves | Attracted the attention of an 0b10 outpost 32204 | -4/Upper Caves | Learned Research stockpile data 32291 | -4/Upper Caves | A Commander dispatched an escort 32292 | -4/Upper Caves | Learned location of 1 exit from Research 32292 | -4/Upper Caves | Learned Research stockpile data 32292 | -4/Upper Caves | Learned Research security intel 32292 | -4/Upper Caves | Learned Factory garrison access intel 32379 | -4/Upper Caves | Discovered new exit (range 11) 32415 | -4/Upper Caves | Entered another Upper Caves area 32415 | -4/Upper Caves | Accompanied by 3 allies 32416 | -4/Upper Caves | Commander's escort returned to base 32416 | -4/Upper Caves | Commander's escort returned to base 32416 | -4/Upper Caves | Commander's escort returned to base 32444 | -4/Upper Caves | Attracted the attention of an 0b10 checkpoint 32449 | -4/Upper Caves | Discovered new exit (range 9) 32450 | -4/Upper Caves | Ambushed by research squad 32526 | -4/Upper Caves | Learned 8 Research zone layouts 32534 | -4/Upper Caves | Discovered new exit (range 13) 32547 | -4/Upper Caves | Entered Warlord 32778 | -4/Warlord | Received a Watcher feed algorithm from an ecstatic Tinkerer 32907 | -4/Warlord | Warlord's base attacked by MAIN.C 32920 | -4/Warlord | Met Warlord 32938 | -4/Warlord | Found Prototype Device 32938 | -4/Warlord | Identified System Purifier 32951 | -4/Warlord | Found Prototype Reactor 32951 | -4/Warlord | Identified Vortex Chain Reactor 32998 | -4/Warlord | Found Prototype Piercing Weapon 33000 | -4/Warlord | Found Prototype Piercing Weapon 33024 | -4/Warlord | Learned Factory terminal intel 33024 | -4/Warlord | Learned Armory scanalyzer intel 33024 | -4/Warlord | Learned Quarantine stockpile data 33024 | -4/Warlord | Learned 4 Armory zone layouts 33024 | -4/Warlord | Learned 4 Armory zone layouts 33024 | -4/Warlord | Learned 4 Command zone layouts 33060 | -4/Warlord | Opened side exit 33125 | -4/Warlord | Discovered new exit (range 9) 33128 | -4/Warlord | Entered Proximity Caves 33155 | -3/Proximity Caves | Lost 5 allies 33306 | -3/Proximity Caves | Destroyed 9 combat bots 33512 | -3/Proximity Caves | Discovered new exit (range 8) 33517 | -3/Proximity Caves | Entered Research 33517 | -3/Research | Evolved 2 slots: Utility x1, Weapon x1 33518 | -3/Research | Identified exit to Research 33519 | -3/Research | Identified exit to Quarantine 33520 | -3/Research | Loaded intel: 99 trap records 33611 | -3/Research | Fabricated Nanosword? 33833 | -3/Research | Identified exit to DSF 33833 | -3/Research | Entered DSF 33851 | -3/DSF | Additional patrols routed to DSF 33929 | -3/DSF | Discovered exit to Research (range 16) 33964 | -3/DSF | Entered Research 33964 | -2/Research | Warlord forces began assault on 0b10 33964 | -2/Research | Evolved 2 slots: Propulsion x1, Utility x1 34074 | -2/Research | Research machine network offline 34125 | -2/Research | Found Prototype Device 34125 | -2/Research | Identified Exp. Focal Shield 34130 | -2/Research | Found Prototype Device 34130 | -2/Research | Identified Exp. Transmission Jammer 34153 | -2/Research | Build established: Hacker-Gladiator 34207 | -2/Research | Met up with Warlord 34322 | -2/Research | Discovered new exit (range 8) 34380 | -2/Research | Discovered new exit (range 13) 34403 | -2/Research | Found Exp. Core Analyzer 34491 | -2/Research | Borebot progress halted 34501 | -2/Research | Borebot progress halted 34523 | -2/Research | Spotted Striker 34628 | -2/Research | Borebot progress halted 34729 | -2/Research | Entered Access 34729 | -1/Access | Evolved 2 slots: Propulsion x1, Weapon x1 34787 | -1/Access | Identified Vortex Lance (x2) 34804 | -1/Access | Destroyed 9 combat bots 35004 | -1/Access | Identified exit to Command 35036 | -1/Access | Fabricated Exp. Melee Analysis Suite? 35178 | -1/Access | Fabricated Exp. Melee Analysis Suite (x1) 35194 | -1/Access | Build established: Machinist-Gladiator 35462 | -1/Access | Repaired Lyr. Heavy Armor Plating 35479 | -1/Access | First assault squad dispatched 35617 | -1/Access | Spotted B-99 Colossus 35642 | -1/Access | Found Adv. Force Booster 35758 | -1/Access | Entered Command 35830 | -1/Command | Disengaged cave seal 35830 | -1/Command | Derelicts emerged from the dark tunnel 35831 | -1/Command | Welcomed Warlord to Command 35927 | -1/Command | Lost 3 allies 35932 | -1/Command | Repaired Nanoactuators 36005 | -1/Command | Identified exit to Surface 36281 | -1/Command | Spotted M Guard 36282 | -1/Command | Spotted M Guard 36282 | -1/Command | Spotted Combat Programmer 36282 | -1/Command | Spotted Combat Programmer 36288 | -1/Command | System corruption reached 10% 36293 | -1/Command | Warlord commented on Warlord statues 36310 | -1/Command | Combat Programmer assimilated allied YN-IX6(K) 36310 | -1/Command | Spotted YN-IX6(K) 36310 | -1/Command | Destroyed M Guard 36314 | -1/Command | Destroyed Combat Programmer 36318 | -1/Command | Destroyed M Guard 36318 | -1/Command | All MAIN.C guards destroyed 36323 | -1/Command | Found Prototype Reactor 36323 | -1/Command | Identified Zero-point Reactor 36339 | -1/Command | Lost 5 parts (1p1n3u) 36398 | -1/Command | Met MAIN.C 36449 | -1/Command | Warlord shut down involuntarily 36470 | -1/Command | Destroyed MAIN.C Shell 36471 | -1/Command | MAIN.C activated Command garrisons 36484 | -1/Command | Destroyed MAIN.C 36485 | -1/Command | Discovered exit to Surface (range 59) 36485 | -1/Command | Discovered exit to Surface (range 60) 36485 | -1/Command | Extracted map data and part IDs from MAIN.C's data core 36498 | -1/Command | Interfaced with 0b10 Conduit 36498 | *** | Assimilated 0b10! Last Messages --------------- 36478_ Acquired 16 matter. 36479_ Vortex Lance follow-up attack on MAIN.C. 36481_ Cmb. Linear Gravjet destroyed. 36481_ Lgt. Quantum Reactor destroyed. 36481_ Knocked back. 36482_ Acquired 14 matter. 36483_ Cmb. Linear Gravjet blown off. 36483_ Lgt. Quantum Reactor blown off. 36483_ E-15 Imp destroyed. 36484_ MAIN.C: "I hope you know you're still going to DIE HERE WITH ME!" 36484_ MAIN.C destroyed. 36484_ Adv. Force Booster blown off. 36484_ Imp. Cooling System blown off. 36484_ Cmb. Linear Gravjet blown off. 36484_ E-15 Imp destroyed. 36485_ EXIT=FOUND: SURFACE 36485_ Acquired data core, extracted map data and part IDs. 36496_ System corrupted: Matter fused (-5). 36498_ Interfacing with system... [Achievement: MAIN.CPP] Map ----- +----------------------------------------------------+ | ################################ | | T################################ | | ####+######"""################################# | | ### #####"""################################# | | # ### ## ################################ | | # ### ## ################################ | | # ### ## ################################ | | ### ## ################################ | | + ######################################### | | ### ######################################### | | ###+#+######################################### | | ### ######################################### | | ### ######################################### | | ### ######################################### | | ### ######""""""" """" ############## | | ### ######"" "" ############## | | ### ######""""" "" ############## | | ### ######""""""""""" + | | ### ######" " """ + | | ######"" """""" + | | ######"" """""" ############## | | ###### " """""" ############## | | ###### " "" ############## | | ###### " " ""############## | | ######""""""""" """""""############## | | ######"" @ """""""""############## | | ###### """""""""""############## | | ###### " " " " ############## | | ###### " " " " ############## | | " " " """" " ############## | | " """ " " """" ############## | | " " " " ############## | | " ###### """""""""" " ############## | | ###### " """ " """"""""############## | | ###### """ " " " ############## | | ######################################### | | ######################################### | | ###### ########################################## | | ## ########################################## | | ############################################## | | ############################################## | | ############################################## | | ############################################## | | """"############################################## | | """"############################################## | | """"############################################## | | """"############################################## | | ############################################## | | ############################################## | | ############################################## | +----------------------------------------------------+ Best States ------------- Heat Dissipation 83 Energy Generation 55 Energy Capacity 700 Matter Stores 300 Matter Capacity 300 Sight Range 23 Robot Scan Range 16 Terrain Scan Density 10 Jamming Range 14 Armor Coverage 600 Resistance: TH 50 Resistance: EM 75 Core Shielding 30 Propulsion Shielding 66 Weapon Shielding 90 Melee Speed Boost 50 Phase Shifting 20 Evasion (%) 75 Targeting Accuracy 16 Melee Accuracy 24 Core Analysis 8 Recoil Reduction 6 Force Boost 40 Offensive Hacking 60 Defensive Hacking 14 Authchip Count 4 Trap Extractor Capacity 8 Item Schematics ----------------- Trap Extractor | -8/Materials | Hacked Nuclear Pulse Array | -8/Materials | Scanalyzed Adv. Cooling System | -8/Materials | Scanalyzed Hvy. Phase Cannon | -8/Materials | Scanalyzed Imp. Propulsion Shielding | -8/Materials | Scanalyzed Cld. VTOL Module | -7/Factory | Hacked Hacking Suite | -7/Factory | Extracted Insulated Plating | -7/Factory | Extracted Adv. Visual Processing Unit | -7/Factory | Extracted Adv. Hacking Suite | -7/Factory | Scanalyzed Hvy. Missile Launcher | -7/Factory | Scanalyzed Mic. Nuclear Core | -7/Factory | Scanalyzed Thermic Laser | -7/Zion | Archive Imp. EM Pulse Cannon | -7/Zion | Archive Imp. Transmission Jammer | -7/Zion | Archive Mak. Sword | -7/Zion | Archive Proton Cannon | -7/Zion | Archive Med. Treads | -7/Zion | Archive Phase Shifter | -7/Zion | Archive Weapon Cycler | -7/Zion | Archive Hvy. Machine Gun | -7/Zion | Archive Remote Datajack | -7/Zion | Archive Imp. Dynamic Insulation System | -7/Zion | Archive Coil Gun | -7/Zion | Archive Med. Insulated Plating | -7/Zion | Archive Hvy. Laser | -7/Zion | Archive Plasma Rifle | -7/Zion | Archive Imp. KE Penetrator | -7/Zion | Archive Exp. Melee Analysis Suite | -6/Factory | Scanalyzed Adv. System Shield | -6/Factory | Hacked Mic. Antimatter Reactor | -6/Factory | Scanalyzed Lrn. Missile Launcher | -6/Factory | Scanalyzed Imp. Heavy Treads | -5/Factory | Hacked Hvy. Reactive Plating | -5/Factory | Hacked Nanoactuators | -5/Factory | Scanalyzed Exp. EM Disruption Field | -4/Factory | Scanalyzed Gui. Micro-nuke Launcher | -4/Factory | Scanalyzed Exp. Weapon Shielding | -4/Factory | Hacked Cmb. Linear Gravjet | -4/Factory | Scanalyzed Lgt. Antimatter Reactor | -4/Factory | Scanalyzed Adv. Actuator Array | -4/Factory | Scanalyzed Nanosword | -4/Factory | Hacked Robot Schematics ------------------ M-13 Machinist | -8/Materials | Hacked L-31 Rogue | -7/Zion | Archive T-07 Excavator | -7/Zion | Archive H-55 Commando | -7/Zion | Archive Fabricated ------------ Trap Extractor | x2 | -7/Factory Cld. VTOL Module | x1 | -7/Factory Cld. VTOL Module | x1 | -7/Factory Cld. VTOL Module | x1 | -7/Factory Cld. VTOL Module | x1 | -7/Factory Cld. VTOL Module | x1 | -7/Factory Adv. Hacking Suite | x1 | -7/Factory Adv. Hacking Suite | x1 | -7/Factory Exp. Weapon Shielding | x1 | -7/Factory | Preloaded Cld. VTOL Module | x1 | -6/Factory Mic. Antimatter Reactor | x2 | -6/Factory | Preloaded Cld. VTOL Module | x1 | -6/Factory K-01 Serf | x1 | -5/Factory | Preloaded Mic. Antimatter Reactor | x2 | -5/Factory Nanoactuators | x2 | -5/Factory Adv. Hacking Suite | x1 | -4/Factory Centrium Leg | x1 | -4/Factory | Preloaded Exp. Weapon Shielding | x1 | -4/Factory Cmb. Linear Gravjet | x2 | -4/Factory Cmb. Linear Gravjet | x2 | -4/Factory Nanosword | x1 | -4/Factory Cmb. Linear Gravjet | x2 | -4/Factory Nanosword | x1 | -4/Factory Nanosword | x1 | -3/Research Exp. Melee Analysis Suite | x1 | -1/Access | Authchip Exp. Melee Analysis Suite | x1 | -1/Access | Authchip Alien Tech Used ----------------- None Achievements -------------- MAIN.CPP Challenges ------------ None Game ------ Seed TripodThermalThermoblaster Manual? 0 Play Time 06:24:21 Cumulative 300.4 hours Start 2024.03.16 @ 08:09:39 End 2024.03.17 @ 10:10:32 Sessions 5 Manual Loads 0 Difficulty Rogue Special Mode None Game No. 196 Rogue 196 Adventurer 0 Explorer 0 Win Type 4 Total 14 Types 9/1/1/1/1/0/0/1/0 Lore% 71 Gallery% 81 Achievement% 72 Wizard Run 0 Options --------- Layout 0 ASCII 0 Keyboard 1 Movement Numpad Keybinds 0 Fullscreen 2 Font 18/SmallcapsGlow Map View 76x50 Zoom Use 0% Tactical HUD 1 Map Filters NONE Filters NONE Steam 1 RUN: 52ff065a-ba52-4eef-ae7f-a4bf3019326f